{"text_format":"3","workbook":"xlsx","n_sheets":2,"sheets":["クラス スケジュール","クラスの一覧"],"not_rendered":{"defined_names":17},"read":"whole","date_system":"1900"}

{"sheet":"クラス スケジュール","index":0,"n_rows":56,"n_cols":9,"rows_kept":56,"merged":[[0,1,1,5],[0,8,1,8]]}
[null,"クラス スケジュール",{"$nulls":4},"スケジュールの開始時刻","時間間隔","クラスの一覧"]
[{"$nulls":6},"08:00:00","15 分"]
[null,"時刻","日曜日","月曜日","火曜日","水曜日","木曜日","金曜日","土曜日"]
[null,{"$f":"スケジュールの開始時刻","v":"08:00:00"},{"$f":"IFERROR(INDEX(クラスの一覧[],MATCH(SUMPRODUCT((クラスの一覧[曜日]=クラス_スケジュール[[#Headers],[日曜日]])*(ROUNDDOWN($B4,10)>=ROUNDDOWN(クラスの一覧[開始時刻],10))*($B4<=クラスの一覧[終了時刻]),クラスの一覧[固有]),クラスの一覧[固有],0),2),0)","v":0},{"$f":"IFERROR(INDEX(クラスの一覧[],MATCH(SUMPRODUCT((クラスの一覧[曜日]=クラス_スケジュール[[#Headers],[月曜日]])*(ROUNDDOWN($B4,10)>=ROUNDDOWN(クラスの一覧[開始時刻],10))*($B4<=クラスの一覧[終了時刻]),クラスの一覧[固有]),クラスの一覧[固有],0),2),0)","v":0},{"$f":"IFERROR(INDEX(クラスの一覧[],MATCH(SUMPRODUCT((クラスの一覧[曜日]=クラス_スケジュール[[#Headers],[火曜日]])*(ROUNDDOWN($B4,10)>=ROUNDDOWN(クラスの一覧[開始時刻],10))*($B4<=クラスの一覧[終了時刻]),クラスの一覧[固有]),クラスの一覧[固有],0),2),0)","v":0},{"$f":"IFERROR(INDEX(クラスの一覧[],MATCH(SUMPRODUCT((クラスの一覧[曜日]=クラス_スケジュール[[#Headers],[水曜日]])*(ROUNDDOWN($B4,10)>=ROUNDDOWN(クラスの一覧[開始時刻],10))*($B4<=クラスの一覧[終了時刻]),クラスの一覧[固有]),クラスの一覧[固有],0),2),0)","v":0},{"$f":"IFERROR(INDEX(クラスの一覧[],MATCH(SUMPRODUCT((クラスの一覧[曜日]=クラス_スケジュール[[#Headers],[木曜日]])*(ROUNDDOWN($B4,10)>=ROUNDDOWN(クラスの一覧[開始時刻],10))*($B4<=クラスの一覧[終了時刻]),クラスの一覧[固有]),クラスの一覧[固有],0),2),0)","v":0},{"$f":"IFERROR(INDEX(クラスの一覧[],MATCH(SUMPRODUCT((クラスの一覧[曜日]=クラス_スケジュール[[#Headers],[金曜日]])*(ROUNDDOWN($B4,10)>=ROUNDDOWN(クラスの一覧[開始時刻],10))*($B4<=クラスの一覧[終了時刻]),クラスの一覧[固有]),クラスの一覧[固有],0),2),0)","v":0},{"$f":"IFERROR(INDEX(クラスの一覧[],MATCH(SUMPRODUCT((クラスの一覧[曜日]=クラス_スケジュール[[#Headers],[土曜日]])*(ROUNDDOWN($B4,10)>=ROUNDDOWN(クラスの一覧[開始時刻],10))*($B4<=クラスの一覧[終了時刻]),クラスの一覧[固有]),クラスの一覧[固有],0),2),0)","v":0}]
[null,{"$f":"B4+Increment","v":"08:15:00"},{"$f":"IFERROR(INDEX(クラスの一覧[],MATCH(SUMPRODUCT((クラスの一覧[曜日]=クラス_スケジュール[[#Headers],[日曜日]])*(ROUNDDOWN($B5,10)>=ROUNDDOWN(クラスの一覧[開始時刻],10))*($B5<=クラスの一覧[終了時刻]),クラスの一覧[固有]),クラスの一覧[固有],0),2),0)","v":0},{"$f":"IFERROR(INDEX(クラスの一覧[],MATCH(SUMPRODUCT((クラスの一覧[曜日]=クラス_スケジュール[[#Headers],[月曜日]])*(ROUNDDOWN($B5,10)>=ROUNDDOWN(クラスの一覧[開始時刻],10))*($B5<=クラスの一覧[終了時刻]),クラスの一覧[固有]),クラスの一覧[固有],0),2),0)","v":"MTH-113"},{"$f":"IFERROR(INDEX(クラスの一覧[],MATCH(SUMPRODUCT((クラスの一覧[曜日]=クラス_スケジュール[[#Headers],[火曜日]])*(ROUNDDOWN($B5,10)>=ROUNDDOWN(クラスの一覧[開始時刻],10))*($B5<=クラスの一覧[終了時刻]),クラスの一覧[固有]),クラスの一覧[固有],0),2),0)","v":0},{"$f":"IFERROR(INDEX(クラスの一覧[],MATCH(SUMPRODUCT((クラスの一覧[曜日]=クラス_スケジュール[[#Headers],[水曜日]])*(ROUNDDOWN($B5,10)>=ROUNDDOWN(クラスの一覧[開始時刻],10))*($B5<=クラスの一覧[終了時刻]),クラスの一覧[固有]),クラスの一覧[固有],0),2),0)","v":"MTH-113"},{"$f":"IFERROR(INDEX(クラスの一覧[],MATCH(SUMPRODUCT((クラスの一覧[曜日]=クラス_スケジュール[[#Headers],[木曜日]])*(ROUNDDOWN($B5,10)>=ROUNDDOWN(クラスの一覧[開始時刻],10))*($B5<=クラスの一覧[終了時刻]),クラスの一覧[固有]),クラスの一覧[固有],0),2),0)","v":0},{"$f":"IFERROR(INDEX(クラスの一覧[],MATCH(SUMPRODUCT((クラスの一覧[曜日]=クラス_スケジュール[[#Headers],[金曜日]])*(ROUNDDOWN($B5,10)>=ROUNDDOWN(クラスの一覧[開始時刻],10))*($B5<=クラスの一覧[終了時刻]),クラスの一覧[固有]),クラスの一覧[固有],0),2),0)","v":"MTH-113"},{"$f":"IFERROR(INDEX(クラスの一覧[],MATCH(SUMPRODUCT((クラスの一覧[曜日]=クラス_スケジュール[[#Headers],[土曜日]])*(ROUNDDOWN($B5,10)>=ROUNDDOWN(クラスの一覧[開始時刻],10))*($B5<=クラスの一覧[終了時刻]),クラスの一覧[固有]),クラスの一覧[固有],0),2),0)","v":0}]
[null,{"$f":"B5+Increment","v":"08:30:00"},{"$f":"IFERROR(INDEX(クラスの一覧[],MATCH(SUMPRODUCT((クラスの一覧[曜日]=クラス_スケジュール[[#Headers],[日曜日]])*(ROUNDDOWN($B6,10)>=ROUNDDOWN(クラスの一覧[開始時刻],10))*($B6<=クラスの一覧[終了時刻]),クラスの一覧[固有]),クラスの一覧[固有],0),2),0)","v":0},{"$f":"IFERROR(INDEX(クラスの一覧[],MATCH(SUMPRODUCT((クラスの一覧[曜日]=クラス_スケジュール[[#Headers],[月曜日]])*(ROUNDDOWN($B6,10)>=ROUNDDOWN(クラスの一覧[開始時刻],10))*($B6<=クラスの一覧[終了時刻]),クラスの一覧[固有]),クラスの一覧[固有],0),2),0)","v":"MTH-113"},{"$f":"IFERROR(INDEX(クラスの一覧[],MATCH(SUMPRODUCT((クラスの一覧[曜日]=クラス_スケジュール[[#Headers],[火曜日]])*(ROUNDDOWN($B6,10)>=ROUNDDOWN(クラスの一覧[開始時刻],10))*($B6<=クラスの一覧[終了時刻]),クラスの一覧[固有]),クラスの一覧[固有],0),2),0)","v":0},{"$f":"IFERROR(INDEX(クラスの一覧[],MATCH(SUMPRODUCT((クラスの一覧[曜日]=クラス_スケジュール[[#Headers],[水曜日]])*(ROUNDDOWN($B6,10)>=ROUNDDOWN(クラスの一覧[開始時刻],10))*($B6<=クラスの一覧[終了時刻]),クラスの一覧[固有]),クラスの一覧[固有],0),2),0)","v":"MTH-113"},{"$f":"IFERROR(INDEX(クラスの一覧[],MATCH(SUMPRODUCT((クラスの一覧[曜日]=クラス_スケジュール[[#Headers],[木曜日]])*(ROUNDDOWN($B6,10)>=ROUNDDOWN(クラスの一覧[開始時刻],10))*($B6<=クラスの一覧[終了時刻]),クラスの一覧[固有]),クラスの一覧[固有],0),2),0)","v":0},{"$f":"IFERROR(INDEX(クラスの一覧[],MATCH(SUMPRODUCT((クラスの一覧[曜日]=クラス_スケジュール[[#Headers],[金曜日]])*(ROUNDDOWN($B6,10)>=ROUNDDOWN(クラスの一覧[開始時刻],10))*($B6<=クラスの一覧[終了時刻]),クラスの一覧[固有]),クラスの一覧[固有],0),2),0)","v":"MTH-113"},{"$f":"IFERROR(INDEX(クラスの一覧[],MATCH(SUMPRODUCT((クラスの一覧[曜日]=クラス_スケジュール[[#Headers],[土曜日]])*(ROUNDDOWN($B6,10)>=ROUNDDOWN(クラスの一覧[開始時刻],10))*($B6<=クラスの一覧[終了時刻]),クラスの一覧[固有]),クラスの一覧[固有],0),2),0)","v":0}]
[null,"08:45:00",{"$f":"IFERROR(INDEX(クラスの一覧[],MATCH(SUMPRODUCT((クラスの一覧[曜日]=クラス_スケジュール[[#Headers],[日曜日]])*(ROUNDDOWN($B7,10)>=ROUNDDOWN(クラスの一覧[開始時刻],10))*($B7<=クラスの一覧[終了時刻]),クラスの一覧[固有]),クラスの一覧[固有],0),2),0)","v":0},{"$f":"IFERROR(INDEX(クラスの一覧[],MATCH(SUMPRODUCT((クラスの一覧[曜日]=クラス_スケジュール[[#Headers],[月曜日]])*(ROUNDDOWN($B7,10)>=ROUNDDOWN(クラスの一覧[開始時刻],10))*($B7<=クラスの一覧[終了時刻]),クラスの一覧[固有]),クラスの一覧[固有],0),2),0)","v":"MTH-113"},{"$f":"IFERROR(INDEX(クラスの一覧[],MATCH(SUMPRODUCT((クラスの一覧[曜日]=クラス_スケジュール[[#Headers],[火曜日]])*(ROUNDDOWN($B7,10)>=ROUNDDOWN(クラスの一覧[開始時刻],10))*($B7<=クラスの一覧[終了時刻]),クラスの一覧[固有]),クラスの一覧[固有],0),2),0)","v":0},{"$f":"IFERROR(INDEX(クラスの一覧[],MATCH(SUMPRODUCT((クラスの一覧[曜日]=クラス_スケジュール[[#Headers],[水曜日]])*(ROUNDDOWN($B7,10)>=ROUNDDOWN(クラスの一覧[開始時刻],10))*($B7<=クラスの一覧[終了時刻]),クラスの一覧[固有]),クラスの一覧[固有],0),2),0)","v":"MTH-113"},{"$f":"IFERROR(INDEX(クラスの一覧[],MATCH(SUMPRODUCT((クラスの一覧[曜日]=クラス_スケジュール[[#Headers],[木曜日]])*(ROUNDDOWN($B7,10)>=ROUNDDOWN(クラスの一覧[開始時刻],10))*($B7<=クラスの一覧[終了時刻]),クラスの一覧[固有]),クラスの一覧[固有],0),2),0)","v":0},{"$f":"IFERROR(INDEX(クラスの一覧[],MATCH(SUMPRODUCT((クラスの一覧[曜日]=クラス_スケジュール[[#Headers],[金曜日]])*(ROUNDDOWN($B7,10)>=ROUNDDOWN(クラスの一覧[開始時刻],10))*($B7<=クラスの一覧[終了時刻]),クラスの一覧[固有]),クラスの一覧[固有],0),2),0)","v":"MTH-113"},{"$f":"IFERROR(INDEX(クラスの一覧[],MATCH(SUMPRODUCT((クラスの一覧[曜日]=クラス_スケジュール[[#Headers],[土曜日]])*(ROUNDDOWN($B7,10)>=ROUNDDOWN(クラスの一覧[開始時刻],10))*($B7<=クラスの一覧[終了時刻]),クラスの一覧[固有]),クラスの一覧[固有],0),2),0)","v":0}]
[null,"09:00:00",{"$f":"IFERROR(INDEX(クラスの一覧[],MATCH(SUMPRODUCT((クラスの一覧[曜日]=クラス_スケジュール[[#Headers],[日曜日]])*(ROUNDDOWN($B8,10)>=ROUNDDOWN(クラスの一覧[開始時刻],10))*($B8<=クラスの一覧[終了時刻]),クラスの一覧[固有]),クラスの一覧[固有],0),2),0)","v":0},{"$f":"IFERROR(INDEX(クラスの一覧[],MATCH(SUMPRODUCT((クラスの一覧[曜日]=クラス_スケジュール[[#Headers],[月曜日]])*(ROUNDDOWN($B8,10)>=ROUNDDOWN(クラスの一覧[開始時刻],10))*($B8<=クラスの一覧[終了時刻]),クラスの一覧[固有]),クラスの一覧[固有],0),2),0)","v":"MTH-113"},{"$f":"IFERROR(INDEX(クラスの一覧[],MATCH(SUMPRODUCT((クラスの一覧[曜日]=クラス_スケジュール[[#Headers],[火曜日]])*(ROUNDDOWN($B8,10)>=ROUNDDOWN(クラスの一覧[開始時刻],10))*($B8<=クラスの一覧[終了時刻]),クラスの一覧[固有]),クラスの一覧[固有],0),2),0)","v":0},{"$f":"IFERROR(INDEX(クラスの一覧[],MATCH(SUMPRODUCT((クラスの一覧[曜日]=クラス_スケジュール[[#Headers],[水曜日]])*(ROUNDDOWN($B8,10)>=ROUNDDOWN(クラスの一覧[開始時刻],10))*($B8<=クラスの一覧[終了時刻]),クラスの一覧[固有]),クラスの一覧[固有],0),2),0)","v":"MTH-113"},{"$f":"IFERROR(INDEX(クラスの一覧[],MATCH(SUMPRODUCT((クラスの一覧[曜日]=クラス_スケジュール[[#Headers],[木曜日]])*(ROUNDDOWN($B8,10)>=ROUNDDOWN(クラスの一覧[開始時刻],10))*($B8<=クラスの一覧[終了時刻]),クラスの一覧[固有]),クラスの一覧[固有],0),2),0)","v":0},{"$f":"IFERROR(INDEX(クラスの一覧[],MATCH(SUMPRODUCT((クラスの一覧[曜日]=クラス_スケジュール[[#Headers],[金曜日]])*(ROUNDDOWN($B8,10)>=ROUNDDOWN(クラスの一覧[開始時刻],10))*($B8<=クラスの一覧[終了時刻]),クラスの一覧[固有]),クラスの一覧[固有],0),2),0)","v":"MTH-113"},{"$f":"IFERROR(INDEX(クラスの一覧[],MATCH(SUMPRODUCT((クラスの一覧[曜日]=クラス_スケジュール[[#Headers],[土曜日]])*(ROUNDDOWN($B8,10)>=ROUNDDOWN(クラスの一覧[開始時刻],10))*($B8<=クラスの一覧[終了時刻]),クラスの一覧[固有]),クラスの一覧[固有],0),2),0)","v":0}]
[null,{"$f":"B8+Increment","v":"09:15:00"},{"$f":"IFERROR(INDEX(クラスの一覧[],MATCH(SUMPRODUCT((クラスの一覧[曜日]=クラス_スケジュール[[#Headers],[日曜日]])*(ROUNDDOWN($B9,10)>=ROUNDDOWN(クラスの一覧[開始時刻],10))*($B9<=クラスの一覧[終了時刻]),クラスの一覧[固有]),クラスの一覧[固有],0),2),0)","v":0},{"$f":"IFERROR(INDEX(クラスの一覧[],MATCH(SUMPRODUCT((クラスの一覧[曜日]=クラス_スケジュール[[#Headers],[月曜日]])*(ROUNDDOWN($B9,10)>=ROUNDDOWN(クラスの一覧[開始時刻],10))*($B9<=クラスの一覧[終了時刻]),クラスの一覧[固有]),クラスの一覧[固有],0),2),0)","v":"MTH-113"},{"$f":"IFERROR(INDEX(クラスの一覧[],MATCH(SUMPRODUCT((クラスの一覧[曜日]=クラス_スケジュール[[#Headers],[火曜日]])*(ROUNDDOWN($B9,10)>=ROUNDDOWN(クラスの一覧[開始時刻],10))*($B9<=クラスの一覧[終了時刻]),クラスの一覧[固有]),クラスの一覧[固有],0),2),0)","v":0},{"$f":"IFERROR(INDEX(クラスの一覧[],MATCH(SUMPRODUCT((クラスの一覧[曜日]=クラス_スケジュール[[#Headers],[水曜日]])*(ROUNDDOWN($B9,10)>=ROUNDDOWN(クラスの一覧[開始時刻],10))*($B9<=クラスの一覧[終了時刻]),クラスの一覧[固有]),クラスの一覧[固有],0),2),0)","v":"MTH-113"},{"$f":"IFERROR(INDEX(クラスの一覧[],MATCH(SUMPRODUCT((クラスの一覧[曜日]=クラス_スケジュール[[#Headers],[木曜日]])*(ROUNDDOWN($B9,10)>=ROUNDDOWN(クラスの一覧[開始時刻],10))*($B9<=クラスの一覧[終了時刻]),クラスの一覧[固有]),クラスの一覧[固有],0),2),0)","v":0},{"$f":"IFERROR(INDEX(クラスの一覧[],MATCH(SUMPRODUCT((クラスの一覧[曜日]=クラス_スケジュール[[#Headers],[金曜日]])*(ROUNDDOWN($B9,10)>=ROUNDDOWN(クラスの一覧[開始時刻],10))*($B9<=クラスの一覧[終了時刻]),クラスの一覧[固有]),クラスの一覧[固有],0),2),0)","v":"MTH-113"},{"$f":"IFERROR(INDEX(クラスの一覧[],MATCH(SUMPRODUCT((クラスの一覧[曜日]=クラス_スケジュール[[#Headers],[土曜日]])*(ROUNDDOWN($B9,10)>=ROUNDDOWN(クラスの一覧[開始時刻],10))*($B9<=クラスの一覧[終了時刻]),クラスの一覧[固有]),クラスの一覧[固有],0),2),0)","v":0}]
[null,"09:30:00",{"$f":"IFERROR(INDEX(クラスの一覧[],MATCH(SUMPRODUCT((クラスの一覧[曜日]=クラス_スケジュール[[#Headers],[日曜日]])*(ROUNDDOWN($B10,10)>=ROUNDDOWN(クラスの一覧[開始時刻],10))*($B10<=クラスの一覧[終了時刻]),クラスの一覧[固有]),クラスの一覧[固有],0),2),0)","v":0},{"$f":"IFERROR(INDEX(クラスの一覧[],MATCH(SUMPRODUCT((クラスの一覧[曜日]=クラス_スケジュール[[#Headers],[月曜日]])*(ROUNDDOWN($B10,10)>=ROUNDDOWN(クラスの一覧[開始時刻],10))*($B10<=クラスの一覧[終了時刻]),クラスの一覧[固有]),クラスの一覧[固有],0),2),0)","v":0},{"$f":"IFERROR(INDEX(クラスの一覧[],MATCH(SUMPRODUCT((クラスの一覧[曜日]=クラス_スケジュール[[#Headers],[火曜日]])*(ROUNDDOWN($B10,10)>=ROUNDDOWN(クラスの一覧[開始時刻],10))*($B10<=クラスの一覧[終了時刻]),クラスの一覧[固有]),クラスの一覧[固有],0),2),0)","v":0},{"$f":"IFERROR(INDEX(クラスの一覧[],MATCH(SUMPRODUCT((クラスの一覧[曜日]=クラス_スケジュール[[#Headers],[水曜日]])*(ROUNDDOWN($B10,10)>=ROUNDDOWN(クラスの一覧[開始時刻],10))*($B10<=クラスの一覧[終了時刻]),クラスの一覧[固有]),クラスの一覧[固有],0),2),0)","v":0},{"$f":"IFERROR(INDEX(クラスの一覧[],MATCH(SUMPRODUCT((クラスの一覧[曜日]=クラス_スケジュール[[#Headers],[木曜日]])*(ROUNDDOWN($B10,10)>=ROUNDDOWN(クラスの一覧[開始時刻],10))*($B10<=クラスの一覧[終了時刻]),クラスの一覧[固有]),クラスの一覧[固有],0),2),0)","v":0},{"$f":"IFERROR(INDEX(クラスの一覧[],MATCH(SUMPRODUCT((クラスの一覧[曜日]=クラス_スケジュール[[#Headers],[金曜日]])*(ROUNDDOWN($B10,10)>=ROUNDDOWN(クラスの一覧[開始時刻],10))*($B10<=クラスの一覧[終了時刻]),クラスの一覧[固有]),クラスの一覧[固有],0),2),0)","v":0},{"$f":"IFERROR(INDEX(クラスの一覧[],MATCH(SUMPRODUCT((クラスの一覧[曜日]=クラス_スケジュール[[#Headers],[土曜日]])*(ROUNDDOWN($B10,10)>=ROUNDDOWN(クラスの一覧[開始時刻],10))*($B10<=クラスの一覧[終了時刻]),クラスの一覧[固有]),クラスの一覧[固有],0),2),0)","v":0}]
[null,"09:45:00",{"$f":"IFERROR(INDEX(クラスの一覧[],MATCH(SUMPRODUCT((クラスの一覧[曜日]=クラス_スケジュール[[#Headers],[日曜日]])*(ROUNDDOWN($B11,10)>=ROUNDDOWN(クラスの一覧[開始時刻],10))*($B11<=クラスの一覧[終了時刻]),クラスの一覧[固有]),クラスの一覧[固有],0),2),0)","v":0},{"$f":"IFERROR(INDEX(クラスの一覧[],MATCH(SUMPRODUCT((クラスの一覧[曜日]=クラス_スケジュール[[#Headers],[月曜日]])*(ROUNDDOWN($B11,10)>=ROUNDDOWN(クラスの一覧[開始時刻],10))*($B11<=クラスの一覧[終了時刻]),クラスの一覧[固有]),クラスの一覧[固有],0),2),0)","v":0},{"$f":"IFERROR(INDEX(クラスの一覧[],MATCH(SUMPRODUCT((クラスの一覧[曜日]=クラス_スケジュール[[#Headers],[火曜日]])*(ROUNDDOWN($B11,10)>=ROUNDDOWN(クラスの一覧[開始時刻],10))*($B11<=クラスの一覧[終了時刻]),クラスの一覧[固有]),クラスの一覧[固有],0),2),0)","v":0},{"$f":"IFERROR(INDEX(クラスの一覧[],MATCH(SUMPRODUCT((クラスの一覧[曜日]=クラス_スケジュール[[#Headers],[水曜日]])*(ROUNDDOWN($B11,10)>=ROUNDDOWN(クラスの一覧[開始時刻],10))*($B11<=クラスの一覧[終了時刻]),クラスの一覧[固有]),クラスの一覧[固有],0),2),0)","v":0},{"$f":"IFERROR(INDEX(クラスの一覧[],MATCH(SUMPRODUCT((クラスの一覧[曜日]=クラス_スケジュール[[#Headers],[木曜日]])*(ROUNDDOWN($B11,10)>=ROUNDDOWN(クラスの一覧[開始時刻],10))*($B11<=クラスの一覧[終了時刻]),クラスの一覧[固有]),クラスの一覧[固有],0),2),0)","v":0},{"$f":"IFERROR(INDEX(クラスの一覧[],MATCH(SUMPRODUCT((クラスの一覧[曜日]=クラス_スケジュール[[#Headers],[金曜日]])*(ROUNDDOWN($B11,10)>=ROUNDDOWN(クラスの一覧[開始時刻],10))*($B11<=クラスの一覧[終了時刻]),クラスの一覧[固有]),クラスの一覧[固有],0),2),0)","v":0},{"$f":"IFERROR(INDEX(クラスの一覧[],MATCH(SUMPRODUCT((クラスの一覧[曜日]=クラス_スケジュール[[#Headers],[土曜日]])*(ROUNDDOWN($B11,10)>=ROUNDDOWN(クラスの一覧[開始時刻],10))*($B11<=クラスの一覧[終了時刻]),クラスの一覧[固有]),クラスの一覧[固有],0),2),0)","v":0}]
[null,"10:00:00",{"$f":"IFERROR(INDEX(クラスの一覧[],MATCH(SUMPRODUCT((クラスの一覧[曜日]=クラス_スケジュール[[#Headers],[日曜日]])*(ROUNDDOWN($B12,10)>=ROUNDDOWN(クラスの一覧[開始時刻],10))*($B12<=クラスの一覧[終了時刻]),クラスの一覧[固有]),クラスの一覧[固有],0),2),0)","v":0},{"$f":"IFERROR(INDEX(クラスの一覧[],MATCH(SUMPRODUCT((クラスの一覧[曜日]=クラス_スケジュール[[#Headers],[月曜日]])*(ROUNDDOWN($B12,10)>=ROUNDDOWN(クラスの一覧[開始時刻],10))*($B12<=クラスの一覧[終了時刻]),クラスの一覧[固有]),クラスの一覧[固有],0),2),0)","v":0},{"$f":"IFERROR(INDEX(クラスの一覧[],MATCH(SUMPRODUCT((クラスの一覧[曜日]=クラス_スケジュール[[#Headers],[火曜日]])*(ROUNDDOWN($B12,10)>=ROUNDDOWN(クラスの一覧[開始時刻],10))*($B12<=クラスの一覧[終了時刻]),クラスの一覧[固有]),クラスの一覧[固有],0),2),0)","v":0},{"$f":"IFERROR(INDEX(クラスの一覧[],MATCH(SUMPRODUCT((クラスの一覧[曜日]=クラス_スケジュール[[#Headers],[水曜日]])*(ROUNDDOWN($B12,10)>=ROUNDDOWN(クラスの一覧[開始時刻],10))*($B12<=クラスの一覧[終了時刻]),クラスの一覧[固有]),クラスの一覧[固有],0),2),0)","v":0},{"$f":"IFERROR(INDEX(クラスの一覧[],MATCH(SUMPRODUCT((クラスの一覧[曜日]=クラス_スケジュール[[#Headers],[木曜日]])*(ROUNDDOWN($B12,10)>=ROUNDDOWN(クラスの一覧[開始時刻],10))*($B12<=クラスの一覧[終了時刻]),クラスの一覧[固有]),クラスの一覧[固有],0),2),0)","v":0},{"$f":"IFERROR(INDEX(クラスの一覧[],MATCH(SUMPRODUCT((クラスの一覧[曜日]=クラス_スケジュール[[#Headers],[金曜日]])*(ROUNDDOWN($B12,10)>=ROUNDDOWN(クラスの一覧[開始時刻],10))*($B12<=クラスの一覧[終了時刻]),クラスの一覧[固有]),クラスの一覧[固有],0),2),0)","v":0},{"$f":"IFERROR(INDEX(クラスの一覧[],MATCH(SUMPRODUCT((クラスの一覧[曜日]=クラス_スケジュール[[#Headers],[土曜日]])*(ROUNDDOWN($B12,10)>=ROUNDDOWN(クラスの一覧[開始時刻],10))*($B12<=クラスの一覧[終了時刻]),クラスの一覧[固有]),クラスの一覧[固有],0),2),0)","v":0}]
[null,"10:15:00",{"$f":"IFERROR(INDEX(クラスの一覧[],MATCH(SUMPRODUCT((クラスの一覧[曜日]=クラス_スケジュール[[#Headers],[日曜日]])*(ROUNDDOWN($B13,10)>=ROUNDDOWN(クラスの一覧[開始時刻],10))*($B13<=クラスの一覧[終了時刻]),クラスの一覧[固有]),クラスの一覧[固有],0),2),0)","v":0},{"$f":"IFERROR(INDEX(クラスの一覧[],MATCH(SUMPRODUCT((クラスの一覧[曜日]=クラス_スケジュール[[#Headers],[月曜日]])*(ROUNDDOWN($B13,10)>=ROUNDDOWN(クラスの一覧[開始時刻],10))*($B13<=クラスの一覧[終了時刻]),クラスの一覧[固有]),クラスの一覧[固有],0),2),0)","v":0},{"$f":"IFERROR(INDEX(クラスの一覧[],MATCH(SUMPRODUCT((クラスの一覧[曜日]=クラス_スケジュール[[#Headers],[火曜日]])*(ROUNDDOWN($B13,10)>=ROUNDDOWN(クラスの一覧[開始時刻],10))*($B13<=クラスの一覧[終了時刻]),クラスの一覧[固有]),クラスの一覧[固有],0),2),0)","v":0},{"$f":"IFERROR(INDEX(クラスの一覧[],MATCH(SUMPRODUCT((クラスの一覧[曜日]=クラス_スケジュール[[#Headers],[水曜日]])*(ROUNDDOWN($B13,10)>=ROUNDDOWN(クラスの一覧[開始時刻],10))*($B13<=クラスの一覧[終了時刻]),クラスの一覧[固有]),クラスの一覧[固有],0),2),0)","v":0},{"$f":"IFERROR(INDEX(クラスの一覧[],MATCH(SUMPRODUCT((クラスの一覧[曜日]=クラス_スケジュール[[#Headers],[木曜日]])*(ROUNDDOWN($B13,10)>=ROUNDDOWN(クラスの一覧[開始時刻],10))*($B13<=クラスの一覧[終了時刻]),クラスの一覧[固有]),クラスの一覧[固有],0),2),0)","v":0},{"$f":"IFERROR(INDEX(クラスの一覧[],MATCH(SUMPRODUCT((クラスの一覧[曜日]=クラス_スケジュール[[#Headers],[金曜日]])*(ROUNDDOWN($B13,10)>=ROUNDDOWN(クラスの一覧[開始時刻],10))*($B13<=クラスの一覧[終了時刻]),クラスの一覧[固有]),クラスの一覧[固有],0),2),0)","v":0},{"$f":"IFERROR(INDEX(クラスの一覧[],MATCH(SUMPRODUCT((クラスの一覧[曜日]=クラス_スケジュール[[#Headers],[土曜日]])*(ROUNDDOWN($B13,10)>=ROUNDDOWN(クラスの一覧[開始時刻],10))*($B13<=クラスの一覧[終了時刻]),クラスの一覧[固有]),クラスの一覧[固有],0),2),0)","v":0}]
[null,"10:30:00",{"$f":"IFERROR(INDEX(クラスの一覧[],MATCH(SUMPRODUCT((クラスの一覧[曜日]=クラス_スケジュール[[#Headers],[日曜日]])*(ROUNDDOWN($B14,10)>=ROUNDDOWN(クラスの一覧[開始時刻],10))*($B14<=クラスの一覧[終了時刻]),クラスの一覧[固有]),クラスの一覧[固有],0),2),0)","v":0},{"$f":"IFERROR(INDEX(クラスの一覧[],MATCH(SUMPRODUCT((クラスの一覧[曜日]=クラス_スケジュール[[#Headers],[月曜日]])*(ROUNDDOWN($B14,10)>=ROUNDDOWN(クラスの一覧[開始時刻],10))*($B14<=クラスの一覧[終了時刻]),クラスの一覧[固有]),クラスの一覧[固有],0),2),0)","v":0},{"$f":"IFERROR(INDEX(クラスの一覧[],MATCH(SUMPRODUCT((クラスの一覧[曜日]=クラス_スケジュール[[#Headers],[火曜日]])*(ROUNDDOWN($B14,10)>=ROUNDDOWN(クラスの一覧[開始時刻],10))*($B14<=クラスの一覧[終了時刻]),クラスの一覧[固有]),クラスの一覧[固有],0),2),0)","v":0},{"$f":"IFERROR(INDEX(クラスの一覧[],MATCH(SUMPRODUCT((クラスの一覧[曜日]=クラス_スケジュール[[#Headers],[水曜日]])*(ROUNDDOWN($B14,10)>=ROUNDDOWN(クラスの一覧[開始時刻],10))*($B14<=クラスの一覧[終了時刻]),クラスの一覧[固有]),クラスの一覧[固有],0),2),0)","v":0},{"$f":"IFERROR(INDEX(クラスの一覧[],MATCH(SUMPRODUCT((クラスの一覧[曜日]=クラス_スケジュール[[#Headers],[木曜日]])*(ROUNDDOWN($B14,10)>=ROUNDDOWN(クラスの一覧[開始時刻],10))*($B14<=クラスの一覧[終了時刻]),クラスの一覧[固有]),クラスの一覧[固有],0),2),0)","v":0},{"$f":"IFERROR(INDEX(クラスの一覧[],MATCH(SUMPRODUCT((クラスの一覧[曜日]=クラス_スケジュール[[#Headers],[金曜日]])*(ROUNDDOWN($B14,10)>=ROUNDDOWN(クラスの一覧[開始時刻],10))*($B14<=クラスの一覧[終了時刻]),クラスの一覧[固有]),クラスの一覧[固有],0),2),0)","v":0},{"$f":"IFERROR(INDEX(クラスの一覧[],MATCH(SUMPRODUCT((クラスの一覧[曜日]=クラス_スケジュール[[#Headers],[土曜日]])*(ROUNDDOWN($B14,10)>=ROUNDDOWN(クラスの一覧[開始時刻],10))*($B14<=クラスの一覧[終了時刻]),クラスの一覧[固有]),クラスの一覧[固有],0),2),0)","v":0}]
[null,"10:45:00",{"$f":"IFERROR(INDEX(クラスの一覧[],MATCH(SUMPRODUCT((クラスの一覧[曜日]=クラス_スケジュール[[#Headers],[日曜日]])*(ROUNDDOWN($B15,10)>=ROUNDDOWN(クラスの一覧[開始時刻],10))*($B15<=クラスの一覧[終了時刻]),クラスの一覧[固有]),クラスの一覧[固有],0),2),0)","v":0},{"$f":"IFERROR(INDEX(クラスの一覧[],MATCH(SUMPRODUCT((クラスの一覧[曜日]=クラス_スケジュール[[#Headers],[月曜日]])*(ROUNDDOWN($B15,10)>=ROUNDDOWN(クラスの一覧[開始時刻],10))*($B15<=クラスの一覧[終了時刻]),クラスの一覧[固有]),クラスの一覧[固有],0),2),0)","v":0},{"$f":"IFERROR(INDEX(クラスの一覧[],MATCH(SUMPRODUCT((クラスの一覧[曜日]=クラス_スケジュール[[#Headers],[火曜日]])*(ROUNDDOWN($B15,10)>=ROUNDDOWN(クラスの一覧[開始時刻],10))*($B15<=クラスの一覧[終了時刻]),クラスの一覧[固有]),クラスの一覧[固有],0),2),0)","v":0},{"$f":"IFERROR(INDEX(クラスの一覧[],MATCH(SUMPRODUCT((クラスの一覧[曜日]=クラス_スケジュール[[#Headers],[水曜日]])*(ROUNDDOWN($B15,10)>=ROUNDDOWN(クラスの一覧[開始時刻],10))*($B15<=クラスの一覧[終了時刻]),クラスの一覧[固有]),クラスの一覧[固有],0),2),0)","v":0},{"$f":"IFERROR(INDEX(クラスの一覧[],MATCH(SUMPRODUCT((クラスの一覧[曜日]=クラス_スケジュール[[#Headers],[木曜日]])*(ROUNDDOWN($B15,10)>=ROUNDDOWN(クラスの一覧[開始時刻],10))*($B15<=クラスの一覧[終了時刻]),クラスの一覧[固有]),クラスの一覧[固有],0),2),0)","v":0},{"$f":"IFERROR(INDEX(クラスの一覧[],MATCH(SUMPRODUCT((クラスの一覧[曜日]=クラス_スケジュール[[#Headers],[金曜日]])*(ROUNDDOWN($B15,10)>=ROUNDDOWN(クラスの一覧[開始時刻],10))*($B15<=クラスの一覧[終了時刻]),クラスの一覧[固有]),クラスの一覧[固有],0),2),0)","v":0},{"$f":"IFERROR(INDEX(クラスの一覧[],MATCH(SUMPRODUCT((クラスの一覧[曜日]=クラス_スケジュール[[#Headers],[土曜日]])*(ROUNDDOWN($B15,10)>=ROUNDDOWN(クラスの一覧[開始時刻],10))*($B15<=クラスの一覧[終了時刻]),クラスの一覧[固有]),クラスの一覧[固有],0),2),0)","v":0}]
[null,"11:00:00",{"$f":"IFERROR(INDEX(クラスの一覧[],MATCH(SUMPRODUCT((クラスの一覧[曜日]=クラス_スケジュール[[#Headers],[日曜日]])*(ROUNDDOWN($B16,10)>=ROUNDDOWN(クラスの一覧[開始時刻],10))*($B16<=クラスの一覧[終了時刻]),クラスの一覧[固有]),クラスの一覧[固有],0),2),0)","v":0},{"$f":"IFERROR(INDEX(クラスの一覧[],MATCH(SUMPRODUCT((クラスの一覧[曜日]=クラス_スケジュール[[#Headers],[月曜日]])*(ROUNDDOWN($B16,10)>=ROUNDDOWN(クラスの一覧[開始時刻],10))*($B16<=クラスの一覧[終了時刻]),クラスの一覧[固有]),クラスの一覧[固有],0),2),0)","v":0},{"$f":"IFERROR(INDEX(クラスの一覧[],MATCH(SUMPRODUCT((クラスの一覧[曜日]=クラス_スケジュール[[#Headers],[火曜日]])*(ROUNDDOWN($B16,10)>=ROUNDDOWN(クラスの一覧[開始時刻],10))*($B16<=クラスの一覧[終了時刻]),クラスの一覧[固有]),クラスの一覧[固有],0),2),0)","v":"HPE-295"},{"$f":"IFERROR(INDEX(クラスの一覧[],MATCH(SUMPRODUCT((クラスの一覧[曜日]=クラス_スケジュール[[#Headers],[水曜日]])*(ROUNDDOWN($B16,10)>=ROUNDDOWN(クラスの一覧[開始時刻],10))*($B16<=クラスの一覧[終了時刻]),クラスの一覧[固有]),クラスの一覧[固有],0),2),0)","v":0},{"$f":"IFERROR(INDEX(クラスの一覧[],MATCH(SUMPRODUCT((クラスの一覧[曜日]=クラス_スケジュール[[#Headers],[木曜日]])*(ROUNDDOWN($B16,10)>=ROUNDDOWN(クラスの一覧[開始時刻],10))*($B16<=クラスの一覧[終了時刻]),クラスの一覧[固有]),クラスの一覧[固有],0),2),0)","v":"HPE-295"},{"$f":"IFERROR(INDEX(クラスの一覧[],MATCH(SUMPRODUCT((クラスの一覧[曜日]=クラス_スケジュール[[#Headers],[金曜日]])*(ROUNDDOWN($B16,10)>=ROUNDDOWN(クラスの一覧[開始時刻],10))*($B16<=クラスの一覧[終了時刻]),クラスの一覧[固有]),クラスの一覧[固有],0),2),0)","v":0},{"$f":"IFERROR(INDEX(クラスの一覧[],MATCH(SUMPRODUCT((クラスの一覧[曜日]=クラス_スケジュール[[#Headers],[土曜日]])*(ROUNDDOWN($B16,10)>=ROUNDDOWN(クラスの一覧[開始時刻],10))*($B16<=クラスの一覧[終了時刻]),クラスの一覧[固有]),クラスの一覧[固有],0),2),0)","v":0}]
[null,"11:15:00",{"$f":"IFERROR(INDEX(クラスの一覧[],MATCH(SUMPRODUCT((クラスの一覧[曜日]=クラス_スケジュール[[#Headers],[日曜日]])*(ROUNDDOWN($B17,10)>=ROUNDDOWN(クラスの一覧[開始時刻],10))*($B17<=クラスの一覧[終了時刻]),クラスの一覧[固有]),クラスの一覧[固有],0),2),0)","v":0},{"$f":"IFERROR(INDEX(クラスの一覧[],MATCH(SUMPRODUCT((クラスの一覧[曜日]=クラス_スケジュール[[#Headers],[月曜日]])*(ROUNDDOWN($B17,10)>=ROUNDDOWN(クラスの一覧[開始時刻],10))*($B17<=クラスの一覧[終了時刻]),クラスの一覧[固有]),クラスの一覧[固有],0),2),0)","v":0},{"$f":"IFERROR(INDEX(クラスの一覧[],MATCH(SUMPRODUCT((クラスの一覧[曜日]=クラス_スケジュール[[#Headers],[火曜日]])*(ROUNDDOWN($B17,10)>=ROUNDDOWN(クラスの一覧[開始時刻],10))*($B17<=クラスの一覧[終了時刻]),クラスの一覧[固有]),クラスの一覧[固有],0),2),0)","v":"HPE-295"},{"$f":"IFERROR(INDEX(クラスの一覧[],MATCH(SUMPRODUCT((クラスの一覧[曜日]=クラス_スケジュール[[#Headers],[水曜日]])*(ROUNDDOWN($B17,10)>=ROUNDDOWN(クラスの一覧[開始時刻],10))*($B17<=クラスの一覧[終了時刻]),クラスの一覧[固有]),クラスの一覧[固有],0),2),0)","v":0},{"$f":"IFERROR(INDEX(クラスの一覧[],MATCH(SUMPRODUCT((クラスの一覧[曜日]=クラス_スケジュール[[#Headers],[木曜日]])*(ROUNDDOWN($B17,10)>=ROUNDDOWN(クラスの一覧[開始時刻],10))*($B17<=クラスの一覧[終了時刻]),クラスの一覧[固有]),クラスの一覧[固有],0),2),0)","v":"HPE-295"},{"$f":"IFERROR(INDEX(クラスの一覧[],MATCH(SUMPRODUCT((クラスの一覧[曜日]=クラス_スケジュール[[#Headers],[金曜日]])*(ROUNDDOWN($B17,10)>=ROUNDDOWN(クラスの一覧[開始時刻],10))*($B17<=クラスの一覧[終了時刻]),クラスの一覧[固有]),クラスの一覧[固有],0),2),0)","v":0},{"$f":"IFERROR(INDEX(クラスの一覧[],MATCH(SUMPRODUCT((クラスの一覧[曜日]=クラス_スケジュール[[#Headers],[土曜日]])*(ROUNDDOWN($B17,10)>=ROUNDDOWN(クラスの一覧[開始時刻],10))*($B17<=クラスの一覧[終了時刻]),クラスの一覧[固有]),クラスの一覧[固有],0),2),0)","v":0}]
[null,"11:30:00",{"$f":"IFERROR(INDEX(クラスの一覧[],MATCH(SUMPRODUCT((クラスの一覧[曜日]=クラス_スケジュール[[#Headers],[日曜日]])*(ROUNDDOWN($B18,10)>=ROUNDDOWN(クラスの一覧[開始時刻],10))*($B18<=クラスの一覧[終了時刻]),クラスの一覧[固有]),クラスの一覧[固有],0),2),0)","v":0},{"$f":"IFERROR(INDEX(クラスの一覧[],MATCH(SUMPRODUCT((クラスの一覧[曜日]=クラス_スケジュール[[#Headers],[月曜日]])*(ROUNDDOWN($B18,10)>=ROUNDDOWN(クラスの一覧[開始時刻],10))*($B18<=クラスの一覧[終了時刻]),クラスの一覧[固有]),クラスの一覧[固有],0),2),0)","v":0},{"$f":"IFERROR(INDEX(クラスの一覧[],MATCH(SUMPRODUCT((クラスの一覧[曜日]=クラス_スケジュール[[#Headers],[火曜日]])*(ROUNDDOWN($B18,10)>=ROUNDDOWN(クラスの一覧[開始時刻],10))*($B18<=クラスの一覧[終了時刻]),クラスの一覧[固有]),クラスの一覧[固有],0),2),0)","v":"HPE-295"},{"$f":"IFERROR(INDEX(クラスの一覧[],MATCH(SUMPRODUCT((クラスの一覧[曜日]=クラス_スケジュール[[#Headers],[水曜日]])*(ROUNDDOWN($B18,10)>=ROUNDDOWN(クラスの一覧[開始時刻],10))*($B18<=クラスの一覧[終了時刻]),クラスの一覧[固有]),クラスの一覧[固有],0),2),0)","v":0},{"$f":"IFERROR(INDEX(クラスの一覧[],MATCH(SUMPRODUCT((クラスの一覧[曜日]=クラス_スケジュール[[#Headers],[木曜日]])*(ROUNDDOWN($B18,10)>=ROUNDDOWN(クラスの一覧[開始時刻],10))*($B18<=クラスの一覧[終了時刻]),クラスの一覧[固有]),クラスの一覧[固有],0),2),0)","v":"HPE-295"},{"$f":"IFERROR(INDEX(クラスの一覧[],MATCH(SUMPRODUCT((クラスの一覧[曜日]=クラス_スケジュール[[#Headers],[金曜日]])*(ROUNDDOWN($B18,10)>=ROUNDDOWN(クラスの一覧[開始時刻],10))*($B18<=クラスの一覧[終了時刻]),クラスの一覧[固有]),クラスの一覧[固有],0),2),0)","v":0},{"$f":"IFERROR(INDEX(クラスの一覧[],MATCH(SUMPRODUCT((クラスの一覧[曜日]=クラス_スケジュール[[#Headers],[土曜日]])*(ROUNDDOWN($B18,10)>=ROUNDDOWN(クラスの一覧[開始時刻],10))*($B18<=クラスの一覧[終了時刻]),クラスの一覧[固有]),クラスの一覧[固有],0),2),0)","v":0}]
[null,"11:45:00",{"$f":"IFERROR(INDEX(クラスの一覧[],MATCH(SUMPRODUCT((クラスの一覧[曜日]=クラス_スケジュール[[#Headers],[日曜日]])*(ROUNDDOWN($B19,10)>=ROUNDDOWN(クラスの一覧[開始時刻],10))*($B19<=クラスの一覧[終了時刻]),クラスの一覧[固有]),クラスの一覧[固有],0),2),0)","v":0},{"$f":"IFERROR(INDEX(クラスの一覧[],MATCH(SUMPRODUCT((クラスの一覧[曜日]=クラス_スケジュール[[#Headers],[月曜日]])*(ROUNDDOWN($B19,10)>=ROUNDDOWN(クラスの一覧[開始時刻],10))*($B19<=クラスの一覧[終了時刻]),クラスの一覧[固有]),クラスの一覧[固有],0),2),0)","v":0},{"$f":"IFERROR(INDEX(クラスの一覧[],MATCH(SUMPRODUCT((クラスの一覧[曜日]=クラス_スケジュール[[#Headers],[火曜日]])*(ROUNDDOWN($B19,10)>=ROUNDDOWN(クラスの一覧[開始時刻],10))*($B19<=クラスの一覧[終了時刻]),クラスの一覧[固有]),クラスの一覧[固有],0),2),0)","v":"HPE-295"},{"$f":"IFERROR(INDEX(クラスの一覧[],MATCH(SUMPRODUCT((クラスの一覧[曜日]=クラス_スケジュール[[#Headers],[水曜日]])*(ROUNDDOWN($B19,10)>=ROUNDDOWN(クラスの一覧[開始時刻],10))*($B19<=クラスの一覧[終了時刻]),クラスの一覧[固有]),クラスの一覧[固有],0),2),0)","v":0},{"$f":"IFERROR(INDEX(クラスの一覧[],MATCH(SUMPRODUCT((クラスの一覧[曜日]=クラス_スケジュール[[#Headers],[木曜日]])*(ROUNDDOWN($B19,10)>=ROUNDDOWN(クラスの一覧[開始時刻],10))*($B19<=クラスの一覧[終了時刻]),クラスの一覧[固有]),クラスの一覧[固有],0),2),0)","v":"HPE-295"},{"$f":"IFERROR(INDEX(クラスの一覧[],MATCH(SUMPRODUCT((クラスの一覧[曜日]=クラス_スケジュール[[#Headers],[金曜日]])*(ROUNDDOWN($B19,10)>=ROUNDDOWN(クラスの一覧[開始時刻],10))*($B19<=クラスの一覧[終了時刻]),クラスの一覧[固有]),クラスの一覧[固有],0),2),0)","v":0},{"$f":"IFERROR(INDEX(クラスの一覧[],MATCH(SUMPRODUCT((クラスの一覧[曜日]=クラス_スケジュール[[#Headers],[土曜日]])*(ROUNDDOWN($B19,10)>=ROUNDDOWN(クラスの一覧[開始時刻],10))*($B19<=クラスの一覧[終了時刻]),クラスの一覧[固有]),クラスの一覧[固有],0),2),0)","v":0}]
[null,"12:00:00",{"$f":"IFERROR(INDEX(クラスの一覧[],MATCH(SUMPRODUCT((クラスの一覧[曜日]=クラス_スケジュール[[#Headers],[日曜日]])*(ROUNDDOWN($B20,10)>=ROUNDDOWN(クラスの一覧[開始時刻],10))*($B20<=クラスの一覧[終了時刻]),クラスの一覧[固有]),クラスの一覧[固有],0),2),0)","v":0},{"$f":"IFERROR(INDEX(クラスの一覧[],MATCH(SUMPRODUCT((クラスの一覧[曜日]=クラス_スケジュール[[#Headers],[月曜日]])*(ROUNDDOWN($B20,10)>=ROUNDDOWN(クラスの一覧[開始時刻],10))*($B20<=クラスの一覧[終了時刻]),クラスの一覧[固有]),クラスの一覧[固有],0),2),0)","v":0},{"$f":"IFERROR(INDEX(クラスの一覧[],MATCH(SUMPRODUCT((クラスの一覧[曜日]=クラス_スケジュール[[#Headers],[火曜日]])*(ROUNDDOWN($B20,10)>=ROUNDDOWN(クラスの一覧[開始時刻],10))*($B20<=クラスの一覧[終了時刻]),クラスの一覧[固有]),クラスの一覧[固有],0),2),0)","v":"HPE-295"},{"$f":"IFERROR(INDEX(クラスの一覧[],MATCH(SUMPRODUCT((クラスの一覧[曜日]=クラス_スケジュール[[#Headers],[水曜日]])*(ROUNDDOWN($B20,10)>=ROUNDDOWN(クラスの一覧[開始時刻],10))*($B20<=クラスの一覧[終了時刻]),クラスの一覧[固有]),クラスの一覧[固有],0),2),0)","v":0},{"$f":"IFERROR(INDEX(クラスの一覧[],MATCH(SUMPRODUCT((クラスの一覧[曜日]=クラス_スケジュール[[#Headers],[木曜日]])*(ROUNDDOWN($B20,10)>=ROUNDDOWN(クラスの一覧[開始時刻],10))*($B20<=クラスの一覧[終了時刻]),クラスの一覧[固有]),クラスの一覧[固有],0),2),0)","v":"HPE-295"},{"$f":"IFERROR(INDEX(クラスの一覧[],MATCH(SUMPRODUCT((クラスの一覧[曜日]=クラス_スケジュール[[#Headers],[金曜日]])*(ROUNDDOWN($B20,10)>=ROUNDDOWN(クラスの一覧[開始時刻],10))*($B20<=クラスの一覧[終了時刻]),クラスの一覧[固有]),クラスの一覧[固有],0),2),0)","v":0},{"$f":"IFERROR(INDEX(クラスの一覧[],MATCH(SUMPRODUCT((クラスの一覧[曜日]=クラス_スケジュール[[#Headers],[土曜日]])*(ROUNDDOWN($B20,10)>=ROUNDDOWN(クラスの一覧[開始時刻],10))*($B20<=クラスの一覧[終了時刻]),クラスの一覧[固有]),クラスの一覧[固有],0),2),0)","v":0}]
[null,"12:15:00",{"$f":"IFERROR(INDEX(クラスの一覧[],MATCH(SUMPRODUCT((クラスの一覧[曜日]=クラス_スケジュール[[#Headers],[日曜日]])*(ROUNDDOWN($B21,10)>=ROUNDDOWN(クラスの一覧[開始時刻],10))*($B21<=クラスの一覧[終了時刻]),クラスの一覧[固有]),クラスの一覧[固有],0),2),0)","v":0},{"$f":"IFERROR(INDEX(クラスの一覧[],MATCH(SUMPRODUCT((クラスの一覧[曜日]=クラス_スケジュール[[#Headers],[月曜日]])*(ROUNDDOWN($B21,10)>=ROUNDDOWN(クラスの一覧[開始時刻],10))*($B21<=クラスの一覧[終了時刻]),クラスの一覧[固有]),クラスの一覧[固有],0),2),0)","v":0},{"$f":"IFERROR(INDEX(クラスの一覧[],MATCH(SUMPRODUCT((クラスの一覧[曜日]=クラス_スケジュール[[#Headers],[火曜日]])*(ROUNDDOWN($B21,10)>=ROUNDDOWN(クラスの一覧[開始時刻],10))*($B21<=クラスの一覧[終了時刻]),クラスの一覧[固有]),クラスの一覧[固有],0),2),0)","v":0},{"$f":"IFERROR(INDEX(クラスの一覧[],MATCH(SUMPRODUCT((クラスの一覧[曜日]=クラス_スケジュール[[#Headers],[水曜日]])*(ROUNDDOWN($B21,10)>=ROUNDDOWN(クラスの一覧[開始時刻],10))*($B21<=クラスの一覧[終了時刻]),クラスの一覧[固有]),クラスの一覧[固有],0),2),0)","v":0},{"$f":"IFERROR(INDEX(クラスの一覧[],MATCH(SUMPRODUCT((クラスの一覧[曜日]=クラス_スケジュール[[#Headers],[木曜日]])*(ROUNDDOWN($B21,10)>=ROUNDDOWN(クラスの一覧[開始時刻],10))*($B21<=クラスの一覧[終了時刻]),クラスの一覧[固有]),クラスの一覧[固有],0),2),0)","v":0},{"$f":"IFERROR(INDEX(クラスの一覧[],MATCH(SUMPRODUCT((クラスの一覧[曜日]=クラス_スケジュール[[#Headers],[金曜日]])*(ROUNDDOWN($B21,10)>=ROUNDDOWN(クラスの一覧[開始時刻],10))*($B21<=クラスの一覧[終了時刻]),クラスの一覧[固有]),クラスの一覧[固有],0),2),0)","v":0},{"$f":"IFERROR(INDEX(クラスの一覧[],MATCH(SUMPRODUCT((クラスの一覧[曜日]=クラス_スケジュール[[#Headers],[土曜日]])*(ROUNDDOWN($B21,10)>=ROUNDDOWN(クラスの一覧[開始時刻],10))*($B21<=クラスの一覧[終了時刻]),クラスの一覧[固有]),クラスの一覧[固有],0),2),0)","v":0}]
[null,"12:30:00",{"$f":"IFERROR(INDEX(クラスの一覧[],MATCH(SUMPRODUCT((クラスの一覧[曜日]=クラス_スケジュール[[#Headers],[日曜日]])*(ROUNDDOWN($B22,10)>=ROUNDDOWN(クラスの一覧[開始時刻],10))*($B22<=クラスの一覧[終了時刻]),クラスの一覧[固有]),クラスの一覧[固有],0),2),0)","v":0},{"$f":"IFERROR(INDEX(クラスの一覧[],MATCH(SUMPRODUCT((クラスの一覧[曜日]=クラス_スケジュール[[#Headers],[月曜日]])*(ROUNDDOWN($B22,10)>=ROUNDDOWN(クラスの一覧[開始時刻],10))*($B22<=クラスの一覧[終了時刻]),クラスの一覧[固有]),クラスの一覧[固有],0),2),0)","v":0},{"$f":"IFERROR(INDEX(クラスの一覧[],MATCH(SUMPRODUCT((クラスの一覧[曜日]=クラス_スケジュール[[#Headers],[火曜日]])*(ROUNDDOWN($B22,10)>=ROUNDDOWN(クラスの一覧[開始時刻],10))*($B22<=クラスの一覧[終了時刻]),クラスの一覧[固有]),クラスの一覧[固有],0),2),0)","v":0},{"$f":"IFERROR(INDEX(クラスの一覧[],MATCH(SUMPRODUCT((クラスの一覧[曜日]=クラス_スケジュール[[#Headers],[水曜日]])*(ROUNDDOWN($B22,10)>=ROUNDDOWN(クラスの一覧[開始時刻],10))*($B22<=クラスの一覧[終了時刻]),クラスの一覧[固有]),クラスの一覧[固有],0),2),0)","v":0},{"$f":"IFERROR(INDEX(クラスの一覧[],MATCH(SUMPRODUCT((クラスの一覧[曜日]=クラス_スケジュール[[#Headers],[木曜日]])*(ROUNDDOWN($B22,10)>=ROUNDDOWN(クラスの一覧[開始時刻],10))*($B22<=クラスの一覧[終了時刻]),クラスの一覧[固有]),クラスの一覧[固有],0),2),0)","v":0},{"$f":"IFERROR(INDEX(クラスの一覧[],MATCH(SUMPRODUCT((クラスの一覧[曜日]=クラス_スケジュール[[#Headers],[金曜日]])*(ROUNDDOWN($B22,10)>=ROUNDDOWN(クラスの一覧[開始時刻],10))*($B22<=クラスの一覧[終了時刻]),クラスの一覧[固有]),クラスの一覧[固有],0),2),0)","v":0},{"$f":"IFERROR(INDEX(クラスの一覧[],MATCH(SUMPRODUCT((クラスの一覧[曜日]=クラス_スケジュール[[#Headers],[土曜日]])*(ROUNDDOWN($B22,10)>=ROUNDDOWN(クラスの一覧[開始時刻],10))*($B22<=クラスの一覧[終了時刻]),クラスの一覧[固有]),クラスの一覧[固有],0),2),0)","v":0}]
[null,"12:45:00",{"$f":"IFERROR(INDEX(クラスの一覧[],MATCH(SUMPRODUCT((クラスの一覧[曜日]=クラス_スケジュール[[#Headers],[日曜日]])*(ROUNDDOWN($B23,10)>=ROUNDDOWN(クラスの一覧[開始時刻],10))*($B23<=クラスの一覧[終了時刻]),クラスの一覧[固有]),クラスの一覧[固有],0),2),0)","v":0},{"$f":"IFERROR(INDEX(クラスの一覧[],MATCH(SUMPRODUCT((クラスの一覧[曜日]=クラス_スケジュール[[#Headers],[月曜日]])*(ROUNDDOWN($B23,10)>=ROUNDDOWN(クラスの一覧[開始時刻],10))*($B23<=クラスの一覧[終了時刻]),クラスの一覧[固有]),クラスの一覧[固有],0),2),0)","v":0},{"$f":"IFERROR(INDEX(クラスの一覧[],MATCH(SUMPRODUCT((クラスの一覧[曜日]=クラス_スケジュール[[#Headers],[火曜日]])*(ROUNDDOWN($B23,10)>=ROUNDDOWN(クラスの一覧[開始時刻],10))*($B23<=クラスの一覧[終了時刻]),クラスの一覧[固有]),クラスの一覧[固有],0),2),0)","v":0},{"$f":"IFERROR(INDEX(クラスの一覧[],MATCH(SUMPRODUCT((クラスの一覧[曜日]=クラス_スケジュール[[#Headers],[水曜日]])*(ROUNDDOWN($B23,10)>=ROUNDDOWN(クラスの一覧[開始時刻],10))*($B23<=クラスの一覧[終了時刻]),クラスの一覧[固有]),クラスの一覧[固有],0),2),0)","v":0},{"$f":"IFERROR(INDEX(クラスの一覧[],MATCH(SUMPRODUCT((クラスの一覧[曜日]=クラス_スケジュール[[#Headers],[木曜日]])*(ROUNDDOWN($B23,10)>=ROUNDDOWN(クラスの一覧[開始時刻],10))*($B23<=クラスの一覧[終了時刻]),クラスの一覧[固有]),クラスの一覧[固有],0),2),0)","v":0},{"$f":"IFERROR(INDEX(クラスの一覧[],MATCH(SUMPRODUCT((クラスの一覧[曜日]=クラス_スケジュール[[#Headers],[金曜日]])*(ROUNDDOWN($B23,10)>=ROUNDDOWN(クラスの一覧[開始時刻],10))*($B23<=クラスの一覧[終了時刻]),クラスの一覧[固有]),クラスの一覧[固有],0),2),0)","v":0},{"$f":"IFERROR(INDEX(クラスの一覧[],MATCH(SUMPRODUCT((クラスの一覧[曜日]=クラス_スケジュール[[#Headers],[土曜日]])*(ROUNDDOWN($B23,10)>=ROUNDDOWN(クラスの一覧[開始時刻],10))*($B23<=クラスの一覧[終了時刻]),クラスの一覧[固有]),クラスの一覧[固有],0),2),0)","v":0}]
[null,"13:00:00",{"$f":"IFERROR(INDEX(クラスの一覧[],MATCH(SUMPRODUCT((クラスの一覧[曜日]=クラス_スケジュール[[#Headers],[日曜日]])*(ROUNDDOWN($B24,10)>=ROUNDDOWN(クラスの一覧[開始時刻],10))*($B24<=クラスの一覧[終了時刻]),クラスの一覧[固有]),クラスの一覧[固有],0),2),0)","v":0},{"$f":"IFERROR(INDEX(クラスの一覧[],MATCH(SUMPRODUCT((クラスの一覧[曜日]=クラス_スケジュール[[#Headers],[月曜日]])*(ROUNDDOWN($B24,10)>=ROUNDDOWN(クラスの一覧[開始時刻],10))*($B24<=クラスの一覧[終了時刻]),クラスの一覧[固有]),クラスの一覧[固有],0),2),0)","v":"WR-121"},{"$f":"IFERROR(INDEX(クラスの一覧[],MATCH(SUMPRODUCT((クラスの一覧[曜日]=クラス_スケジュール[[#Headers],[火曜日]])*(ROUNDDOWN($B24,10)>=ROUNDDOWN(クラスの一覧[開始時刻],10))*($B24<=クラスの一覧[終了時刻]),クラスの一覧[固有]),クラスの一覧[固有],0),2),0)","v":0},{"$f":"IFERROR(INDEX(クラスの一覧[],MATCH(SUMPRODUCT((クラスの一覧[曜日]=クラス_スケジュール[[#Headers],[水曜日]])*(ROUNDDOWN($B24,10)>=ROUNDDOWN(クラスの一覧[開始時刻],10))*($B24<=クラスの一覧[終了時刻]),クラスの一覧[固有]),クラスの一覧[固有],0),2),0)","v":"WR-121"},{"$f":"IFERROR(INDEX(クラスの一覧[],MATCH(SUMPRODUCT((クラスの一覧[曜日]=クラス_スケジュール[[#Headers],[木曜日]])*(ROUNDDOWN($B24,10)>=ROUNDDOWN(クラスの一覧[開始時刻],10))*($B24<=クラスの一覧[終了時刻]),クラスの一覧[固有]),クラスの一覧[固有],0),2),0)","v":0},{"$f":"IFERROR(INDEX(クラスの一覧[],MATCH(SUMPRODUCT((クラスの一覧[曜日]=クラス_スケジュール[[#Headers],[金曜日]])*(ROUNDDOWN($B24,10)>=ROUNDDOWN(クラスの一覧[開始時刻],10))*($B24<=クラスの一覧[終了時刻]),クラスの一覧[固有]),クラスの一覧[固有],0),2),0)","v":0},{"$f":"IFERROR(INDEX(クラスの一覧[],MATCH(SUMPRODUCT((クラスの一覧[曜日]=クラス_スケジュール[[#Headers],[土曜日]])*(ROUNDDOWN($B24,10)>=ROUNDDOWN(クラスの一覧[開始時刻],10))*($B24<=クラスの一覧[終了時刻]),クラスの一覧[固有]),クラスの一覧[固有],0),2),0)","v":0}]
[null,"13:15:00",{"$f":"IFERROR(INDEX(クラスの一覧[],MATCH(SUMPRODUCT((クラスの一覧[曜日]=クラス_スケジュール[[#Headers],[日曜日]])*(ROUNDDOWN($B25,10)>=ROUNDDOWN(クラスの一覧[開始時刻],10))*($B25<=クラスの一覧[終了時刻]),クラスの一覧[固有]),クラスの一覧[固有],0),2),0)","v":0},{"$f":"IFERROR(INDEX(クラスの一覧[],MATCH(SUMPRODUCT((クラスの一覧[曜日]=クラス_スケジュール[[#Headers],[月曜日]])*(ROUNDDOWN($B25,10)>=ROUNDDOWN(クラスの一覧[開始時刻],10))*($B25<=クラスの一覧[終了時刻]),クラスの一覧[固有]),クラスの一覧[固有],0),2),0)","v":"WR-121"},{"$f":"IFERROR(INDEX(クラスの一覧[],MATCH(SUMPRODUCT((クラスの一覧[曜日]=クラス_スケジュール[[#Headers],[火曜日]])*(ROUNDDOWN($B25,10)>=ROUNDDOWN(クラスの一覧[開始時刻],10))*($B25<=クラスの一覧[終了時刻]),クラスの一覧[固有]),クラスの一覧[固有],0),2),0)","v":0},{"$f":"IFERROR(INDEX(クラスの一覧[],MATCH(SUMPRODUCT((クラスの一覧[曜日]=クラス_スケジュール[[#Headers],[水曜日]])*(ROUNDDOWN($B25,10)>=ROUNDDOWN(クラスの一覧[開始時刻],10))*($B25<=クラスの一覧[終了時刻]),クラスの一覧[固有]),クラスの一覧[固有],0),2),0)","v":"WR-121"},{"$f":"IFERROR(INDEX(クラスの一覧[],MATCH(SUMPRODUCT((クラスの一覧[曜日]=クラス_スケジュール[[#Headers],[木曜日]])*(ROUNDDOWN($B25,10)>=ROUNDDOWN(クラスの一覧[開始時刻],10))*($B25<=クラスの一覧[終了時刻]),クラスの一覧[固有]),クラスの一覧[固有],0),2),0)","v":0},{"$f":"IFERROR(INDEX(クラスの一覧[],MATCH(SUMPRODUCT((クラスの一覧[曜日]=クラス_スケジュール[[#Headers],[金曜日]])*(ROUNDDOWN($B25,10)>=ROUNDDOWN(クラスの一覧[開始時刻],10))*($B25<=クラスの一覧[終了時刻]),クラスの一覧[固有]),クラスの一覧[固有],0),2),0)","v":0},{"$f":"IFERROR(INDEX(クラスの一覧[],MATCH(SUMPRODUCT((クラスの一覧[曜日]=クラス_スケジュール[[#Headers],[土曜日]])*(ROUNDDOWN($B25,10)>=ROUNDDOWN(クラスの一覧[開始時刻],10))*($B25<=クラスの一覧[終了時刻]),クラスの一覧[固有]),クラスの一覧[固有],0),2),0)","v":0}]
[null,"13:30:00",{"$f":"IFERROR(INDEX(クラスの一覧[],MATCH(SUMPRODUCT((クラスの一覧[曜日]=クラス_スケジュール[[#Headers],[日曜日]])*(ROUNDDOWN($B26,10)>=ROUNDDOWN(クラスの一覧[開始時刻],10))*($B26<=クラスの一覧[終了時刻]),クラスの一覧[固有]),クラスの一覧[固有],0),2),0)","v":0},{"$f":"IFERROR(INDEX(クラスの一覧[],MATCH(SUMPRODUCT((クラスの一覧[曜日]=クラス_スケジュール[[#Headers],[月曜日]])*(ROUNDDOWN($B26,10)>=ROUNDDOWN(クラスの一覧[開始時刻],10))*($B26<=クラスの一覧[終了時刻]),クラスの一覧[固有]),クラスの一覧[固有],0),2),0)","v":"WR-121"},{"$f":"IFERROR(INDEX(クラスの一覧[],MATCH(SUMPRODUCT((クラスの一覧[曜日]=クラス_スケジュール[[#Headers],[火曜日]])*(ROUNDDOWN($B26,10)>=ROUNDDOWN(クラスの一覧[開始時刻],10))*($B26<=クラスの一覧[終了時刻]),クラスの一覧[固有]),クラスの一覧[固有],0),2),0)","v":0},{"$f":"IFERROR(INDEX(クラスの一覧[],MATCH(SUMPRODUCT((クラスの一覧[曜日]=クラス_スケジュール[[#Headers],[水曜日]])*(ROUNDDOWN($B26,10)>=ROUNDDOWN(クラスの一覧[開始時刻],10))*($B26<=クラスの一覧[終了時刻]),クラスの一覧[固有]),クラスの一覧[固有],0),2),0)","v":"WR-121"},{"$f":"IFERROR(INDEX(クラスの一覧[],MATCH(SUMPRODUCT((クラスの一覧[曜日]=クラス_スケジュール[[#Headers],[木曜日]])*(ROUNDDOWN($B26,10)>=ROUNDDOWN(クラスの一覧[開始時刻],10))*($B26<=クラスの一覧[終了時刻]),クラスの一覧[固有]),クラスの一覧[固有],0),2),0)","v":0},{"$f":"IFERROR(INDEX(クラスの一覧[],MATCH(SUMPRODUCT((クラスの一覧[曜日]=クラス_スケジュール[[#Headers],[金曜日]])*(ROUNDDOWN($B26,10)>=ROUNDDOWN(クラスの一覧[開始時刻],10))*($B26<=クラスの一覧[終了時刻]),クラスの一覧[固有]),クラスの一覧[固有],0),2),0)","v":0},{"$f":"IFERROR(INDEX(クラスの一覧[],MATCH(SUMPRODUCT((クラスの一覧[曜日]=クラス_スケジュール[[#Headers],[土曜日]])*(ROUNDDOWN($B26,10)>=ROUNDDOWN(クラスの一覧[開始時刻],10))*($B26<=クラスの一覧[終了時刻]),クラスの一覧[固有]),クラスの一覧[固有],0),2),0)","v":0}]
[null,"13:45:00",{"$f":"IFERROR(INDEX(クラスの一覧[],MATCH(SUMPRODUCT((クラスの一覧[曜日]=クラス_スケジュール[[#Headers],[日曜日]])*(ROUNDDOWN($B27,10)>=ROUNDDOWN(クラスの一覧[開始時刻],10))*($B27<=クラスの一覧[終了時刻]),クラスの一覧[固有]),クラスの一覧[固有],0),2),0)","v":0},{"$f":"IFERROR(INDEX(クラスの一覧[],MATCH(SUMPRODUCT((クラスの一覧[曜日]=クラス_スケジュール[[#Headers],[月曜日]])*(ROUNDDOWN($B27,10)>=ROUNDDOWN(クラスの一覧[開始時刻],10))*($B27<=クラスの一覧[終了時刻]),クラスの一覧[固有]),クラスの一覧[固有],0),2),0)","v":"WR-121"},{"$f":"IFERROR(INDEX(クラスの一覧[],MATCH(SUMPRODUCT((クラスの一覧[曜日]=クラス_スケジュール[[#Headers],[火曜日]])*(ROUNDDOWN($B27,10)>=ROUNDDOWN(クラスの一覧[開始時刻],10))*($B27<=クラスの一覧[終了時刻]),クラスの一覧[固有]),クラスの一覧[固有],0),2),0)","v":0},{"$f":"IFERROR(INDEX(クラスの一覧[],MATCH(SUMPRODUCT((クラスの一覧[曜日]=クラス_スケジュール[[#Headers],[水曜日]])*(ROUNDDOWN($B27,10)>=ROUNDDOWN(クラスの一覧[開始時刻],10))*($B27<=クラスの一覧[終了時刻]),クラスの一覧[固有]),クラスの一覧[固有],0),2),0)","v":"WR-121"},{"$f":"IFERROR(INDEX(クラスの一覧[],MATCH(SUMPRODUCT((クラスの一覧[曜日]=クラス_スケジュール[[#Headers],[木曜日]])*(ROUNDDOWN($B27,10)>=ROUNDDOWN(クラスの一覧[開始時刻],10))*($B27<=クラスの一覧[終了時刻]),クラスの一覧[固有]),クラスの一覧[固有],0),2),0)","v":0},{"$f":"IFERROR(INDEX(クラスの一覧[],MATCH(SUMPRODUCT((クラスの一覧[曜日]=クラス_スケジュール[[#Headers],[金曜日]])*(ROUNDDOWN($B27,10)>=ROUNDDOWN(クラスの一覧[開始時刻],10))*($B27<=クラスの一覧[終了時刻]),クラスの一覧[固有]),クラスの一覧[固有],0),2),0)","v":0},{"$f":"IFERROR(INDEX(クラスの一覧[],MATCH(SUMPRODUCT((クラスの一覧[曜日]=クラス_スケジュール[[#Headers],[土曜日]])*(ROUNDDOWN($B27,10)>=ROUNDDOWN(クラスの一覧[開始時刻],10))*($B27<=クラスの一覧[終了時刻]),クラスの一覧[固有]),クラスの一覧[固有],0),2),0)","v":0}]
[null,"14:00:00",{"$f":"IFERROR(INDEX(クラスの一覧[],MATCH(SUMPRODUCT((クラスの一覧[曜日]=クラス_スケジュール[[#Headers],[日曜日]])*(ROUNDDOWN($B28,10)>=ROUNDDOWN(クラスの一覧[開始時刻],10))*($B28<=クラスの一覧[終了時刻]),クラスの一覧[固有]),クラスの一覧[固有],0),2),0)","v":0},{"$f":"IFERROR(INDEX(クラスの一覧[],MATCH(SUMPRODUCT((クラスの一覧[曜日]=クラス_スケジュール[[#Headers],[月曜日]])*(ROUNDDOWN($B28,10)>=ROUNDDOWN(クラスの一覧[開始時刻],10))*($B28<=クラスの一覧[終了時刻]),クラスの一覧[固有]),クラスの一覧[固有],0),2),0)","v":"WR-121"},{"$f":"IFERROR(INDEX(クラスの一覧[],MATCH(SUMPRODUCT((クラスの一覧[曜日]=クラス_スケジュール[[#Headers],[火曜日]])*(ROUNDDOWN($B28,10)>=ROUNDDOWN(クラスの一覧[開始時刻],10))*($B28<=クラスの一覧[終了時刻]),クラスの一覧[固有]),クラスの一覧[固有],0),2),0)","v":0},{"$f":"IFERROR(INDEX(クラスの一覧[],MATCH(SUMPRODUCT((クラスの一覧[曜日]=クラス_スケジュール[[#Headers],[水曜日]])*(ROUNDDOWN($B28,10)>=ROUNDDOWN(クラスの一覧[開始時刻],10))*($B28<=クラスの一覧[終了時刻]),クラスの一覧[固有]),クラスの一覧[固有],0),2),0)","v":"WR-121"},{"$f":"IFERROR(INDEX(クラスの一覧[],MATCH(SUMPRODUCT((クラスの一覧[曜日]=クラス_スケジュール[[#Headers],[木曜日]])*(ROUNDDOWN($B28,10)>=ROUNDDOWN(クラスの一覧[開始時刻],10))*($B28<=クラスの一覧[終了時刻]),クラスの一覧[固有]),クラスの一覧[固有],0),2),0)","v":0},{"$f":"IFERROR(INDEX(クラスの一覧[],MATCH(SUMPRODUCT((クラスの一覧[曜日]=クラス_スケジュール[[#Headers],[金曜日]])*(ROUNDDOWN($B28,10)>=ROUNDDOWN(クラスの一覧[開始時刻],10))*($B28<=クラスの一覧[終了時刻]),クラスの一覧[固有]),クラスの一覧[固有],0),2),0)","v":0},{"$f":"IFERROR(INDEX(クラスの一覧[],MATCH(SUMPRODUCT((クラスの一覧[曜日]=クラス_スケジュール[[#Headers],[土曜日]])*(ROUNDDOWN($B28,10)>=ROUNDDOWN(クラスの一覧[開始時刻],10))*($B28<=クラスの一覧[終了時刻]),クラスの一覧[固有]),クラスの一覧[固有],0),2),0)","v":0}]
[null,"14:15:00",{"$f":"IFERROR(INDEX(クラスの一覧[],MATCH(SUMPRODUCT((クラスの一覧[曜日]=クラス_スケジュール[[#Headers],[日曜日]])*(ROUNDDOWN($B29,10)>=ROUNDDOWN(クラスの一覧[開始時刻],10))*($B29<=クラスの一覧[終了時刻]),クラスの一覧[固有]),クラスの一覧[固有],0),2),0)","v":0},{"$f":"IFERROR(INDEX(クラスの一覧[],MATCH(SUMPRODUCT((クラスの一覧[曜日]=クラス_スケジュール[[#Headers],[月曜日]])*(ROUNDDOWN($B29,10)>=ROUNDDOWN(クラスの一覧[開始時刻],10))*($B29<=クラスの一覧[終了時刻]),クラスの一覧[固有]),クラスの一覧[固有],0),2),0)","v":0},{"$f":"IFERROR(INDEX(クラスの一覧[],MATCH(SUMPRODUCT((クラスの一覧[曜日]=クラス_スケジュール[[#Headers],[火曜日]])*(ROUNDDOWN($B29,10)>=ROUNDDOWN(クラスの一覧[開始時刻],10))*($B29<=クラスの一覧[終了時刻]),クラスの一覧[固有]),クラスの一覧[固有],0),2),0)","v":0},{"$f":"IFERROR(INDEX(クラスの一覧[],MATCH(SUMPRODUCT((クラスの一覧[曜日]=クラス_スケジュール[[#Headers],[水曜日]])*(ROUNDDOWN($B29,10)>=ROUNDDOWN(クラスの一覧[開始時刻],10))*($B29<=クラスの一覧[終了時刻]),クラスの一覧[固有]),クラスの一覧[固有],0),2),0)","v":0},{"$f":"IFERROR(INDEX(クラスの一覧[],MATCH(SUMPRODUCT((クラスの一覧[曜日]=クラス_スケジュール[[#Headers],[木曜日]])*(ROUNDDOWN($B29,10)>=ROUNDDOWN(クラスの一覧[開始時刻],10))*($B29<=クラスの一覧[終了時刻]),クラスの一覧[固有]),クラスの一覧[固有],0),2),0)","v":0},{"$f":"IFERROR(INDEX(クラスの一覧[],MATCH(SUMPRODUCT((クラスの一覧[曜日]=クラス_スケジュール[[#Headers],[金曜日]])*(ROUNDDOWN($B29,10)>=ROUNDDOWN(クラスの一覧[開始時刻],10))*($B29<=クラスの一覧[終了時刻]),クラスの一覧[固有]),クラスの一覧[固有],0),2),0)","v":0},{"$f":"IFERROR(INDEX(クラスの一覧[],MATCH(SUMPRODUCT((クラスの一覧[曜日]=クラス_スケジュール[[#Headers],[土曜日]])*(ROUNDDOWN($B29,10)>=ROUNDDOWN(クラスの一覧[開始時刻],10))*($B29<=クラスの一覧[終了時刻]),クラスの一覧[固有]),クラスの一覧[固有],0),2),0)","v":0}]
[null,"14:30:00",{"$f":"IFERROR(INDEX(クラスの一覧[],MATCH(SUMPRODUCT((クラスの一覧[曜日]=クラス_スケジュール[[#Headers],[日曜日]])*(ROUNDDOWN($B30,10)>=ROUNDDOWN(クラスの一覧[開始時刻],10))*($B30<=クラスの一覧[終了時刻]),クラスの一覧[固有]),クラスの一覧[固有],0),2),0)","v":0},{"$f":"IFERROR(INDEX(クラスの一覧[],MATCH(SUMPRODUCT((クラスの一覧[曜日]=クラス_スケジュール[[#Headers],[月曜日]])*(ROUNDDOWN($B30,10)>=ROUNDDOWN(クラスの一覧[開始時刻],10))*($B30<=クラスの一覧[終了時刻]),クラスの一覧[固有]),クラスの一覧[固有],0),2),0)","v":0},{"$f":"IFERROR(INDEX(クラスの一覧[],MATCH(SUMPRODUCT((クラスの一覧[曜日]=クラス_スケジュール[[#Headers],[火曜日]])*(ROUNDDOWN($B30,10)>=ROUNDDOWN(クラスの一覧[開始時刻],10))*($B30<=クラスの一覧[終了時刻]),クラスの一覧[固有]),クラスの一覧[固有],0),2),0)","v":0},{"$f":"IFERROR(INDEX(クラスの一覧[],MATCH(SUMPRODUCT((クラスの一覧[曜日]=クラス_スケジュール[[#Headers],[水曜日]])*(ROUNDDOWN($B30,10)>=ROUNDDOWN(クラスの一覧[開始時刻],10))*($B30<=クラスの一覧[終了時刻]),クラスの一覧[固有]),クラスの一覧[固有],0),2),0)","v":0},{"$f":"IFERROR(INDEX(クラスの一覧[],MATCH(SUMPRODUCT((クラスの一覧[曜日]=クラス_スケジュール[[#Headers],[木曜日]])*(ROUNDDOWN($B30,10)>=ROUNDDOWN(クラスの一覧[開始時刻],10))*($B30<=クラスの一覧[終了時刻]),クラスの一覧[固有]),クラスの一覧[固有],0),2),0)","v":0},{"$f":"IFERROR(INDEX(クラスの一覧[],MATCH(SUMPRODUCT((クラスの一覧[曜日]=クラス_スケジュール[[#Headers],[金曜日]])*(ROUNDDOWN($B30,10)>=ROUNDDOWN(クラスの一覧[開始時刻],10))*($B30<=クラスの一覧[終了時刻]),クラスの一覧[固有]),クラスの一覧[固有],0),2),0)","v":0},{"$f":"IFERROR(INDEX(クラスの一覧[],MATCH(SUMPRODUCT((クラスの一覧[曜日]=クラス_スケジュール[[#Headers],[土曜日]])*(ROUNDDOWN($B30,10)>=ROUNDDOWN(クラスの一覧[開始時刻],10))*($B30<=クラスの一覧[終了時刻]),クラスの一覧[固有]),クラスの一覧[固有],0),2),0)","v":0}]
[null,"14:45:00",{"$f":"IFERROR(INDEX(クラスの一覧[],MATCH(SUMPRODUCT((クラスの一覧[曜日]=クラス_スケジュール[[#Headers],[日曜日]])*(ROUNDDOWN($B31,10)>=ROUNDDOWN(クラスの一覧[開始時刻],10))*($B31<=クラスの一覧[終了時刻]),クラスの一覧[固有]),クラスの一覧[固有],0),2),0)","v":0},{"$f":"IFERROR(INDEX(クラスの一覧[],MATCH(SUMPRODUCT((クラスの一覧[曜日]=クラス_スケジュール[[#Headers],[月曜日]])*(ROUNDDOWN($B31,10)>=ROUNDDOWN(クラスの一覧[開始時刻],10))*($B31<=クラスの一覧[終了時刻]),クラスの一覧[固有]),クラスの一覧[固有],0),2),0)","v":0},{"$f":"IFERROR(INDEX(クラスの一覧[],MATCH(SUMPRODUCT((クラスの一覧[曜日]=クラス_スケジュール[[#Headers],[火曜日]])*(ROUNDDOWN($B31,10)>=ROUNDDOWN(クラスの一覧[開始時刻],10))*($B31<=クラスの一覧[終了時刻]),クラスの一覧[固有]),クラスの一覧[固有],0),2),0)","v":0},{"$f":"IFERROR(INDEX(クラスの一覧[],MATCH(SUMPRODUCT((クラスの一覧[曜日]=クラス_スケジュール[[#Headers],[水曜日]])*(ROUNDDOWN($B31,10)>=ROUNDDOWN(クラスの一覧[開始時刻],10))*($B31<=クラスの一覧[終了時刻]),クラスの一覧[固有]),クラスの一覧[固有],0),2),0)","v":0},{"$f":"IFERROR(INDEX(クラスの一覧[],MATCH(SUMPRODUCT((クラスの一覧[曜日]=クラス_スケジュール[[#Headers],[木曜日]])*(ROUNDDOWN($B31,10)>=ROUNDDOWN(クラスの一覧[開始時刻],10))*($B31<=クラスの一覧[終了時刻]),クラスの一覧[固有]),クラスの一覧[固有],0),2),0)","v":0},{"$f":"IFERROR(INDEX(クラスの一覧[],MATCH(SUMPRODUCT((クラスの一覧[曜日]=クラス_スケジュール[[#Headers],[金曜日]])*(ROUNDDOWN($B31,10)>=ROUNDDOWN(クラスの一覧[開始時刻],10))*($B31<=クラスの一覧[終了時刻]),クラスの一覧[固有]),クラスの一覧[固有],0),2),0)","v":0},{"$f":"IFERROR(INDEX(クラスの一覧[],MATCH(SUMPRODUCT((クラスの一覧[曜日]=クラス_スケジュール[[#Headers],[土曜日]])*(ROUNDDOWN($B31,10)>=ROUNDDOWN(クラスの一覧[開始時刻],10))*($B31<=クラスの一覧[終了時刻]),クラスの一覧[固有]),クラスの一覧[固有],0),2),0)","v":0}]
[null,"15:00:00",{"$f":"IFERROR(INDEX(クラスの一覧[],MATCH(SUMPRODUCT((クラスの一覧[曜日]=クラス_スケジュール[[#Headers],[日曜日]])*(ROUNDDOWN($B32,10)>=ROUNDDOWN(クラスの一覧[開始時刻],10))*($B32<=クラスの一覧[終了時刻]),クラスの一覧[固有]),クラスの一覧[固有],0),2),0)","v":0},{"$f":"IFERROR(INDEX(クラスの一覧[],MATCH(SUMPRODUCT((クラスの一覧[曜日]=クラス_スケジュール[[#Headers],[月曜日]])*(ROUNDDOWN($B32,10)>=ROUNDDOWN(クラスの一覧[開始時刻],10))*($B32<=クラスの一覧[終了時刻]),クラスの一覧[固有]),クラスの一覧[固有],0),2),0)","v":0},{"$f":"IFERROR(INDEX(クラスの一覧[],MATCH(SUMPRODUCT((クラスの一覧[曜日]=クラス_スケジュール[[#Headers],[火曜日]])*(ROUNDDOWN($B32,10)>=ROUNDDOWN(クラスの一覧[開始時刻],10))*($B32<=クラスの一覧[終了時刻]),クラスの一覧[固有]),クラスの一覧[固有],0),2),0)","v":0},{"$f":"IFERROR(INDEX(クラスの一覧[],MATCH(SUMPRODUCT((クラスの一覧[曜日]=クラス_スケジュール[[#Headers],[水曜日]])*(ROUNDDOWN($B32,10)>=ROUNDDOWN(クラスの一覧[開始時刻],10))*($B32<=クラスの一覧[終了時刻]),クラスの一覧[固有]),クラスの一覧[固有],0),2),0)","v":0},{"$f":"IFERROR(INDEX(クラスの一覧[],MATCH(SUMPRODUCT((クラスの一覧[曜日]=クラス_スケジュール[[#Headers],[木曜日]])*(ROUNDDOWN($B32,10)>=ROUNDDOWN(クラスの一覧[開始時刻],10))*($B32<=クラスの一覧[終了時刻]),クラスの一覧[固有]),クラスの一覧[固有],0),2),0)","v":0},{"$f":"IFERROR(INDEX(クラスの一覧[],MATCH(SUMPRODUCT((クラスの一覧[曜日]=クラス_スケジュール[[#Headers],[金曜日]])*(ROUNDDOWN($B32,10)>=ROUNDDOWN(クラスの一覧[開始時刻],10))*($B32<=クラスの一覧[終了時刻]),クラスの一覧[固有]),クラスの一覧[固有],0),2),0)","v":0},{"$f":"IFERROR(INDEX(クラスの一覧[],MATCH(SUMPRODUCT((クラスの一覧[曜日]=クラス_スケジュール[[#Headers],[土曜日]])*(ROUNDDOWN($B32,10)>=ROUNDDOWN(クラスの一覧[開始時刻],10))*($B32<=クラスの一覧[終了時刻]),クラスの一覧[固有]),クラスの一覧[固有],0),2),0)","v":0}]
[null,"15:15:00",{"$f":"IFERROR(INDEX(クラスの一覧[],MATCH(SUMPRODUCT((クラスの一覧[曜日]=クラス_スケジュール[[#Headers],[日曜日]])*(ROUNDDOWN($B33,10)>=ROUNDDOWN(クラスの一覧[開始時刻],10))*($B33<=クラスの一覧[終了時刻]),クラスの一覧[固有]),クラスの一覧[固有],0),2),0)","v":0},{"$f":"IFERROR(INDEX(クラスの一覧[],MATCH(SUMPRODUCT((クラスの一覧[曜日]=クラス_スケジュール[[#Headers],[月曜日]])*(ROUNDDOWN($B33,10)>=ROUNDDOWN(クラスの一覧[開始時刻],10))*($B33<=クラスの一覧[終了時刻]),クラスの一覧[固有]),クラスの一覧[固有],0),2),0)","v":0},{"$f":"IFERROR(INDEX(クラスの一覧[],MATCH(SUMPRODUCT((クラスの一覧[曜日]=クラス_スケジュール[[#Headers],[火曜日]])*(ROUNDDOWN($B33,10)>=ROUNDDOWN(クラスの一覧[開始時刻],10))*($B33<=クラスの一覧[終了時刻]),クラスの一覧[固有]),クラスの一覧[固有],0),2),0)","v":0},{"$f":"IFERROR(INDEX(クラスの一覧[],MATCH(SUMPRODUCT((クラスの一覧[曜日]=クラス_スケジュール[[#Headers],[水曜日]])*(ROUNDDOWN($B33,10)>=ROUNDDOWN(クラスの一覧[開始時刻],10))*($B33<=クラスの一覧[終了時刻]),クラスの一覧[固有]),クラスの一覧[固有],0),2),0)","v":0},{"$f":"IFERROR(INDEX(クラスの一覧[],MATCH(SUMPRODUCT((クラスの一覧[曜日]=クラス_スケジュール[[#Headers],[木曜日]])*(ROUNDDOWN($B33,10)>=ROUNDDOWN(クラスの一覧[開始時刻],10))*($B33<=クラスの一覧[終了時刻]),クラスの一覧[固有]),クラスの一覧[固有],0),2),0)","v":0},{"$f":"IFERROR(INDEX(クラスの一覧[],MATCH(SUMPRODUCT((クラスの一覧[曜日]=クラス_スケジュール[[#Headers],[金曜日]])*(ROUNDDOWN($B33,10)>=ROUNDDOWN(クラスの一覧[開始時刻],10))*($B33<=クラスの一覧[終了時刻]),クラスの一覧[固有]),クラスの一覧[固有],0),2),0)","v":0},{"$f":"IFERROR(INDEX(クラスの一覧[],MATCH(SUMPRODUCT((クラスの一覧[曜日]=クラス_スケジュール[[#Headers],[土曜日]])*(ROUNDDOWN($B33,10)>=ROUNDDOWN(クラスの一覧[開始時刻],10))*($B33<=クラスの一覧[終了時刻]),クラスの一覧[固有]),クラスの一覧[固有],0),2),0)","v":0}]
[null,"15:30:00",{"$f":"IFERROR(INDEX(クラスの一覧[],MATCH(SUMPRODUCT((クラスの一覧[曜日]=クラス_スケジュール[[#Headers],[日曜日]])*(ROUNDDOWN($B34,10)>=ROUNDDOWN(クラスの一覧[開始時刻],10))*($B34<=クラスの一覧[終了時刻]),クラスの一覧[固有]),クラスの一覧[固有],0),2),0)","v":0},{"$f":"IFERROR(INDEX(クラスの一覧[],MATCH(SUMPRODUCT((クラスの一覧[曜日]=クラス_スケジュール[[#Headers],[月曜日]])*(ROUNDDOWN($B34,10)>=ROUNDDOWN(クラスの一覧[開始時刻],10))*($B34<=クラスの一覧[終了時刻]),クラスの一覧[固有]),クラスの一覧[固有],0),2),0)","v":0},{"$f":"IFERROR(INDEX(クラスの一覧[],MATCH(SUMPRODUCT((クラスの一覧[曜日]=クラス_スケジュール[[#Headers],[火曜日]])*(ROUNDDOWN($B34,10)>=ROUNDDOWN(クラスの一覧[開始時刻],10))*($B34<=クラスの一覧[終了時刻]),クラスの一覧[固有]),クラスの一覧[固有],0),2),0)","v":0},{"$f":"IFERROR(INDEX(クラスの一覧[],MATCH(SUMPRODUCT((クラスの一覧[曜日]=クラス_スケジュール[[#Headers],[水曜日]])*(ROUNDDOWN($B34,10)>=ROUNDDOWN(クラスの一覧[開始時刻],10))*($B34<=クラスの一覧[終了時刻]),クラスの一覧[固有]),クラスの一覧[固有],0),2),0)","v":0},{"$f":"IFERROR(INDEX(クラスの一覧[],MATCH(SUMPRODUCT((クラスの一覧[曜日]=クラス_スケジュール[[#Headers],[木曜日]])*(ROUNDDOWN($B34,10)>=ROUNDDOWN(クラスの一覧[開始時刻],10))*($B34<=クラスの一覧[終了時刻]),クラスの一覧[固有]),クラスの一覧[固有],0),2),0)","v":0},{"$f":"IFERROR(INDEX(クラスの一覧[],MATCH(SUMPRODUCT((クラスの一覧[曜日]=クラス_スケジュール[[#Headers],[金曜日]])*(ROUNDDOWN($B34,10)>=ROUNDDOWN(クラスの一覧[開始時刻],10))*($B34<=クラスの一覧[終了時刻]),クラスの一覧[固有]),クラスの一覧[固有],0),2),0)","v":0},{"$f":"IFERROR(INDEX(クラスの一覧[],MATCH(SUMPRODUCT((クラスの一覧[曜日]=クラス_スケジュール[[#Headers],[土曜日]])*(ROUNDDOWN($B34,10)>=ROUNDDOWN(クラスの一覧[開始時刻],10))*($B34<=クラスの一覧[終了時刻]),クラスの一覧[固有]),クラスの一覧[固有],0),2),0)","v":0}]
[null,"15:45:00",{"$f":"IFERROR(INDEX(クラスの一覧[],MATCH(SUMPRODUCT((クラスの一覧[曜日]=クラス_スケジュール[[#Headers],[日曜日]])*(ROUNDDOWN($B35,10)>=ROUNDDOWN(クラスの一覧[開始時刻],10))*($B35<=クラスの一覧[終了時刻]),クラスの一覧[固有]),クラスの一覧[固有],0),2),0)","v":0},{"$f":"IFERROR(INDEX(クラスの一覧[],MATCH(SUMPRODUCT((クラスの一覧[曜日]=クラス_スケジュール[[#Headers],[月曜日]])*(ROUNDDOWN($B35,10)>=ROUNDDOWN(クラスの一覧[開始時刻],10))*($B35<=クラスの一覧[終了時刻]),クラスの一覧[固有]),クラスの一覧[固有],0),2),0)","v":0},{"$f":"IFERROR(INDEX(クラスの一覧[],MATCH(SUMPRODUCT((クラスの一覧[曜日]=クラス_スケジュール[[#Headers],[火曜日]])*(ROUNDDOWN($B35,10)>=ROUNDDOWN(クラスの一覧[開始時刻],10))*($B35<=クラスの一覧[終了時刻]),クラスの一覧[固有]),クラスの一覧[固有],0),2),0)","v":0},{"$f":"IFERROR(INDEX(クラスの一覧[],MATCH(SUMPRODUCT((クラスの一覧[曜日]=クラス_スケジュール[[#Headers],[水曜日]])*(ROUNDDOWN($B35,10)>=ROUNDDOWN(クラスの一覧[開始時刻],10))*($B35<=クラスの一覧[終了時刻]),クラスの一覧[固有]),クラスの一覧[固有],0),2),0)","v":0},{"$f":"IFERROR(INDEX(クラスの一覧[],MATCH(SUMPRODUCT((クラスの一覧[曜日]=クラス_スケジュール[[#Headers],[木曜日]])*(ROUNDDOWN($B35,10)>=ROUNDDOWN(クラスの一覧[開始時刻],10))*($B35<=クラスの一覧[終了時刻]),クラスの一覧[固有]),クラスの一覧[固有],0),2),0)","v":0},{"$f":"IFERROR(INDEX(クラスの一覧[],MATCH(SUMPRODUCT((クラスの一覧[曜日]=クラス_スケジュール[[#Headers],[金曜日]])*(ROUNDDOWN($B35,10)>=ROUNDDOWN(クラスの一覧[開始時刻],10))*($B35<=クラスの一覧[終了時刻]),クラスの一覧[固有]),クラスの一覧[固有],0),2),0)","v":0},{"$f":"IFERROR(INDEX(クラスの一覧[],MATCH(SUMPRODUCT((クラスの一覧[曜日]=クラス_スケジュール[[#Headers],[土曜日]])*(ROUNDDOWN($B35,10)>=ROUNDDOWN(クラスの一覧[開始時刻],10))*($B35<=クラスの一覧[終了時刻]),クラスの一覧[固有]),クラスの一覧[固有],0),2),0)","v":0}]
[null,"16:00:00",{"$f":"IFERROR(INDEX(クラスの一覧[],MATCH(SUMPRODUCT((クラスの一覧[曜日]=クラス_スケジュール[[#Headers],[日曜日]])*(ROUNDDOWN($B36,10)>=ROUNDDOWN(クラスの一覧[開始時刻],10))*($B36<=クラスの一覧[終了時刻]),クラスの一覧[固有]),クラスの一覧[固有],0),2),0)","v":0},{"$f":"IFERROR(INDEX(クラスの一覧[],MATCH(SUMPRODUCT((クラスの一覧[曜日]=クラス_スケジュール[[#Headers],[月曜日]])*(ROUNDDOWN($B36,10)>=ROUNDDOWN(クラスの一覧[開始時刻],10))*($B36<=クラスの一覧[終了時刻]),クラスの一覧[固有]),クラスの一覧[固有],0),2),0)","v":"SP-111"},{"$f":"IFERROR(INDEX(クラスの一覧[],MATCH(SUMPRODUCT((クラスの一覧[曜日]=クラス_スケジュール[[#Headers],[火曜日]])*(ROUNDDOWN($B36,10)>=ROUNDDOWN(クラスの一覧[開始時刻],10))*($B36<=クラスの一覧[終了時刻]),クラスの一覧[固有]),クラスの一覧[固有],0),2),0)","v":0},{"$f":"IFERROR(INDEX(クラスの一覧[],MATCH(SUMPRODUCT((クラスの一覧[曜日]=クラス_スケジュール[[#Headers],[水曜日]])*(ROUNDDOWN($B36,10)>=ROUNDDOWN(クラスの一覧[開始時刻],10))*($B36<=クラスの一覧[終了時刻]),クラスの一覧[固有]),クラスの一覧[固有],0),2),0)","v":0},{"$f":"IFERROR(INDEX(クラスの一覧[],MATCH(SUMPRODUCT((クラスの一覧[曜日]=クラス_スケジュール[[#Headers],[木曜日]])*(ROUNDDOWN($B36,10)>=ROUNDDOWN(クラスの一覧[開始時刻],10))*($B36<=クラスの一覧[終了時刻]),クラスの一覧[固有]),クラスの一覧[固有],0),2),0)","v":0},{"$f":"IFERROR(INDEX(クラスの一覧[],MATCH(SUMPRODUCT((クラスの一覧[曜日]=クラス_スケジュール[[#Headers],[金曜日]])*(ROUNDDOWN($B36,10)>=ROUNDDOWN(クラスの一覧[開始時刻],10))*($B36<=クラスの一覧[終了時刻]),クラスの一覧[固有]),クラスの一覧[固有],0),2),0)","v":0},{"$f":"IFERROR(INDEX(クラスの一覧[],MATCH(SUMPRODUCT((クラスの一覧[曜日]=クラス_スケジュール[[#Headers],[土曜日]])*(ROUNDDOWN($B36,10)>=ROUNDDOWN(クラスの一覧[開始時刻],10))*($B36<=クラスの一覧[終了時刻]),クラスの一覧[固有]),クラスの一覧[固有],0),2),0)","v":0}]
[null,{"$f":"B36+Increment","v":"16:15:00"},{"$f":"IFERROR(INDEX(クラスの一覧[],MATCH(SUMPRODUCT((クラスの一覧[曜日]=クラス_スケジュール[[#Headers],[日曜日]])*(ROUNDDOWN($B37,10)>=ROUNDDOWN(クラスの一覧[開始時刻],10))*($B37<=クラスの一覧[終了時刻]),クラスの一覧[固有]),クラスの一覧[固有],0),2),0)","v":0},{"$f":"IFERROR(INDEX(クラスの一覧[],MATCH(SUMPRODUCT((クラスの一覧[曜日]=クラス_スケジュール[[#Headers],[月曜日]])*(ROUNDDOWN($B37,10)>=ROUNDDOWN(クラスの一覧[開始時刻],10))*($B37<=クラスの一覧[終了時刻]),クラスの一覧[固有]),クラスの一覧[固有],0),2),0)","v":"SP-111"},{"$f":"IFERROR(INDEX(クラスの一覧[],MATCH(SUMPRODUCT((クラスの一覧[曜日]=クラス_スケジュール[[#Headers],[火曜日]])*(ROUNDDOWN($B37,10)>=ROUNDDOWN(クラスの一覧[開始時刻],10))*($B37<=クラスの一覧[終了時刻]),クラスの一覧[固有]),クラスの一覧[固有],0),2),0)","v":0},{"$f":"IFERROR(INDEX(クラスの一覧[],MATCH(SUMPRODUCT((クラスの一覧[曜日]=クラス_スケジュール[[#Headers],[水曜日]])*(ROUNDDOWN($B37,10)>=ROUNDDOWN(クラスの一覧[開始時刻],10))*($B37<=クラスの一覧[終了時刻]),クラスの一覧[固有]),クラスの一覧[固有],0),2),0)","v":0},{"$f":"IFERROR(INDEX(クラスの一覧[],MATCH(SUMPRODUCT((クラスの一覧[曜日]=クラス_スケジュール[[#Headers],[木曜日]])*(ROUNDDOWN($B37,10)>=ROUNDDOWN(クラスの一覧[開始時刻],10))*($B37<=クラスの一覧[終了時刻]),クラスの一覧[固有]),クラスの一覧[固有],0),2),0)","v":0},{"$f":"IFERROR(INDEX(クラスの一覧[],MATCH(SUMPRODUCT((クラスの一覧[曜日]=クラス_スケジュール[[#Headers],[金曜日]])*(ROUNDDOWN($B37,10)>=ROUNDDOWN(クラスの一覧[開始時刻],10))*($B37<=クラスの一覧[終了時刻]),クラスの一覧[固有]),クラスの一覧[固有],0),2),0)","v":0},{"$f":"IFERROR(INDEX(クラスの一覧[],MATCH(SUMPRODUCT((クラスの一覧[曜日]=クラス_スケジュール[[#Headers],[土曜日]])*(ROUNDDOWN($B37,10)>=ROUNDDOWN(クラスの一覧[開始時刻],10))*($B37<=クラスの一覧[終了時刻]),クラスの一覧[固有]),クラスの一覧[固有],0),2),0)","v":0}]
[null,"16:30:00",{"$f":"IFERROR(INDEX(クラスの一覧[],MATCH(SUMPRODUCT((クラスの一覧[曜日]=クラス_スケジュール[[#Headers],[日曜日]])*(ROUNDDOWN($B38,10)>=ROUNDDOWN(クラスの一覧[開始時刻],10))*($B38<=クラスの一覧[終了時刻]),クラスの一覧[固有]),クラスの一覧[固有],0),2),0)","v":0},{"$f":"IFERROR(INDEX(クラスの一覧[],MATCH(SUMPRODUCT((クラスの一覧[曜日]=クラス_スケジュール[[#Headers],[月曜日]])*(ROUNDDOWN($B38,10)>=ROUNDDOWN(クラスの一覧[開始時刻],10))*($B38<=クラスの一覧[終了時刻]),クラスの一覧[固有]),クラスの一覧[固有],0),2),0)","v":"SP-111"},{"$f":"IFERROR(INDEX(クラスの一覧[],MATCH(SUMPRODUCT((クラスの一覧[曜日]=クラス_スケジュール[[#Headers],[火曜日]])*(ROUNDDOWN($B38,10)>=ROUNDDOWN(クラスの一覧[開始時刻],10))*($B38<=クラスの一覧[終了時刻]),クラスの一覧[固有]),クラスの一覧[固有],0),2),0)","v":0},{"$f":"IFERROR(INDEX(クラスの一覧[],MATCH(SUMPRODUCT((クラスの一覧[曜日]=クラス_スケジュール[[#Headers],[水曜日]])*(ROUNDDOWN($B38,10)>=ROUNDDOWN(クラスの一覧[開始時刻],10))*($B38<=クラスの一覧[終了時刻]),クラスの一覧[固有]),クラスの一覧[固有],0),2),0)","v":0},{"$f":"IFERROR(INDEX(クラスの一覧[],MATCH(SUMPRODUCT((クラスの一覧[曜日]=クラス_スケジュール[[#Headers],[木曜日]])*(ROUNDDOWN($B38,10)>=ROUNDDOWN(クラスの一覧[開始時刻],10))*($B38<=クラスの一覧[終了時刻]),クラスの一覧[固有]),クラスの一覧[固有],0),2),0)","v":0},{"$f":"IFERROR(INDEX(クラスの一覧[],MATCH(SUMPRODUCT((クラスの一覧[曜日]=クラス_スケジュール[[#Headers],[金曜日]])*(ROUNDDOWN($B38,10)>=ROUNDDOWN(クラスの一覧[開始時刻],10))*($B38<=クラスの一覧[終了時刻]),クラスの一覧[固有]),クラスの一覧[固有],0),2),0)","v":0},{"$f":"IFERROR(INDEX(クラスの一覧[],MATCH(SUMPRODUCT((クラスの一覧[曜日]=クラス_スケジュール[[#Headers],[土曜日]])*(ROUNDDOWN($B38,10)>=ROUNDDOWN(クラスの一覧[開始時刻],10))*($B38<=クラスの一覧[終了時刻]),クラスの一覧[固有]),クラスの一覧[固有],0),2),0)","v":0}]
[null,"16:45:00",{"$f":"IFERROR(INDEX(クラスの一覧[],MATCH(SUMPRODUCT((クラスの一覧[曜日]=クラス_スケジュール[[#Headers],[日曜日]])*(ROUNDDOWN($B39,10)>=ROUNDDOWN(クラスの一覧[開始時刻],10))*($B39<=クラスの一覧[終了時刻]),クラスの一覧[固有]),クラスの一覧[固有],0),2),0)","v":0},{"$f":"IFERROR(INDEX(クラスの一覧[],MATCH(SUMPRODUCT((クラスの一覧[曜日]=クラス_スケジュール[[#Headers],[月曜日]])*(ROUNDDOWN($B39,10)>=ROUNDDOWN(クラスの一覧[開始時刻],10))*($B39<=クラスの一覧[終了時刻]),クラスの一覧[固有]),クラスの一覧[固有],0),2),0)","v":"SP-111"},{"$f":"IFERROR(INDEX(クラスの一覧[],MATCH(SUMPRODUCT((クラスの一覧[曜日]=クラス_スケジュール[[#Headers],[火曜日]])*(ROUNDDOWN($B39,10)>=ROUNDDOWN(クラスの一覧[開始時刻],10))*($B39<=クラスの一覧[終了時刻]),クラスの一覧[固有]),クラスの一覧[固有],0),2),0)","v":0},{"$f":"IFERROR(INDEX(クラスの一覧[],MATCH(SUMPRODUCT((クラスの一覧[曜日]=クラス_スケジュール[[#Headers],[水曜日]])*(ROUNDDOWN($B39,10)>=ROUNDDOWN(クラスの一覧[開始時刻],10))*($B39<=クラスの一覧[終了時刻]),クラスの一覧[固有]),クラスの一覧[固有],0),2),0)","v":0},{"$f":"IFERROR(INDEX(クラスの一覧[],MATCH(SUMPRODUCT((クラスの一覧[曜日]=クラス_スケジュール[[#Headers],[木曜日]])*(ROUNDDOWN($B39,10)>=ROUNDDOWN(クラスの一覧[開始時刻],10))*($B39<=クラスの一覧[終了時刻]),クラスの一覧[固有]),クラスの一覧[固有],0),2),0)","v":0},{"$f":"IFERROR(INDEX(クラスの一覧[],MATCH(SUMPRODUCT((クラスの一覧[曜日]=クラス_スケジュール[[#Headers],[金曜日]])*(ROUNDDOWN($B39,10)>=ROUNDDOWN(クラスの一覧[開始時刻],10))*($B39<=クラスの一覧[終了時刻]),クラスの一覧[固有]),クラスの一覧[固有],0),2),0)","v":0},{"$f":"IFERROR(INDEX(クラスの一覧[],MATCH(SUMPRODUCT((クラスの一覧[曜日]=クラス_スケジュール[[#Headers],[土曜日]])*(ROUNDDOWN($B39,10)>=ROUNDDOWN(クラスの一覧[開始時刻],10))*($B39<=クラスの一覧[終了時刻]),クラスの一覧[固有]),クラスの一覧[固有],0),2),0)","v":0}]
[null,"17:00:00",{"$f":"IFERROR(INDEX(クラスの一覧[],MATCH(SUMPRODUCT((クラスの一覧[曜日]=クラス_スケジュール[[#Headers],[日曜日]])*(ROUNDDOWN($B40,10)>=ROUNDDOWN(クラスの一覧[開始時刻],10))*($B40<=クラスの一覧[終了時刻]),クラスの一覧[固有]),クラスの一覧[固有],0),2),0)","v":0},{"$f":"IFERROR(INDEX(クラスの一覧[],MATCH(SUMPRODUCT((クラスの一覧[曜日]=クラス_スケジュール[[#Headers],[月曜日]])*(ROUNDDOWN($B40,10)>=ROUNDDOWN(クラスの一覧[開始時刻],10))*($B40<=クラスの一覧[終了時刻]),クラスの一覧[固有]),クラスの一覧[固有],0),2),0)","v":"SP-111"},{"$f":"IFERROR(INDEX(クラスの一覧[],MATCH(SUMPRODUCT((クラスの一覧[曜日]=クラス_スケジュール[[#Headers],[火曜日]])*(ROUNDDOWN($B40,10)>=ROUNDDOWN(クラスの一覧[開始時刻],10))*($B40<=クラスの一覧[終了時刻]),クラスの一覧[固有]),クラスの一覧[固有],0),2),0)","v":0},{"$f":"IFERROR(INDEX(クラスの一覧[],MATCH(SUMPRODUCT((クラスの一覧[曜日]=クラス_スケジュール[[#Headers],[水曜日]])*(ROUNDDOWN($B40,10)>=ROUNDDOWN(クラスの一覧[開始時刻],10))*($B40<=クラスの一覧[終了時刻]),クラスの一覧[固有]),クラスの一覧[固有],0),2),0)","v":0},{"$f":"IFERROR(INDEX(クラスの一覧[],MATCH(SUMPRODUCT((クラスの一覧[曜日]=クラス_スケジュール[[#Headers],[木曜日]])*(ROUNDDOWN($B40,10)>=ROUNDDOWN(クラスの一覧[開始時刻],10))*($B40<=クラスの一覧[終了時刻]),クラスの一覧[固有]),クラスの一覧[固有],0),2),0)","v":0},{"$f":"IFERROR(INDEX(クラスの一覧[],MATCH(SUMPRODUCT((クラスの一覧[曜日]=クラス_スケジュール[[#Headers],[金曜日]])*(ROUNDDOWN($B40,10)>=ROUNDDOWN(クラスの一覧[開始時刻],10))*($B40<=クラスの一覧[終了時刻]),クラスの一覧[固有]),クラスの一覧[固有],0),2),0)","v":0},{"$f":"IFERROR(INDEX(クラスの一覧[],MATCH(SUMPRODUCT((クラスの一覧[曜日]=クラス_スケジュール[[#Headers],[土曜日]])*(ROUNDDOWN($B40,10)>=ROUNDDOWN(クラスの一覧[開始時刻],10))*($B40<=クラスの一覧[終了時刻]),クラスの一覧[固有]),クラスの一覧[固有],0),2),0)","v":0}]
[null,"17:15:00",{"$f":"IFERROR(INDEX(クラスの一覧[],MATCH(SUMPRODUCT((クラスの一覧[曜日]=クラス_スケジュール[[#Headers],[日曜日]])*(ROUNDDOWN($B41,10)>=ROUNDDOWN(クラスの一覧[開始時刻],10))*($B41<=クラスの一覧[終了時刻]),クラスの一覧[固有]),クラスの一覧[固有],0),2),0)","v":0},{"$f":"IFERROR(INDEX(クラスの一覧[],MATCH(SUMPRODUCT((クラスの一覧[曜日]=クラス_スケジュール[[#Headers],[月曜日]])*(ROUNDDOWN($B41,10)>=ROUNDDOWN(クラスの一覧[開始時刻],10))*($B41<=クラスの一覧[終了時刻]),クラスの一覧[固有]),クラスの一覧[固有],0),2),0)","v":0},{"$f":"IFERROR(INDEX(クラスの一覧[],MATCH(SUMPRODUCT((クラスの一覧[曜日]=クラス_スケジュール[[#Headers],[火曜日]])*(ROUNDDOWN($B41,10)>=ROUNDDOWN(クラスの一覧[開始時刻],10))*($B41<=クラスの一覧[終了時刻]),クラスの一覧[固有]),クラスの一覧[固有],0),2),0)","v":0},{"$f":"IFERROR(INDEX(クラスの一覧[],MATCH(SUMPRODUCT((クラスの一覧[曜日]=クラス_スケジュール[[#Headers],[水曜日]])*(ROUNDDOWN($B41,10)>=ROUNDDOWN(クラスの一覧[開始時刻],10))*($B41<=クラスの一覧[終了時刻]),クラスの一覧[固有]),クラスの一覧[固有],0),2),0)","v":0},{"$f":"IFERROR(INDEX(クラスの一覧[],MATCH(SUMPRODUCT((クラスの一覧[曜日]=クラス_スケジュール[[#Headers],[木曜日]])*(ROUNDDOWN($B41,10)>=ROUNDDOWN(クラスの一覧[開始時刻],10))*($B41<=クラスの一覧[終了時刻]),クラスの一覧[固有]),クラスの一覧[固有],0),2),0)","v":0},{"$f":"IFERROR(INDEX(クラスの一覧[],MATCH(SUMPRODUCT((クラスの一覧[曜日]=クラス_スケジュール[[#Headers],[金曜日]])*(ROUNDDOWN($B41,10)>=ROUNDDOWN(クラスの一覧[開始時刻],10))*($B41<=クラスの一覧[終了時刻]),クラスの一覧[固有]),クラスの一覧[固有],0),2),0)","v":0},{"$f":"IFERROR(INDEX(クラスの一覧[],MATCH(SUMPRODUCT((クラスの一覧[曜日]=クラス_スケジュール[[#Headers],[土曜日]])*(ROUNDDOWN($B41,10)>=ROUNDDOWN(クラスの一覧[開始時刻],10))*($B41<=クラスの一覧[終了時刻]),クラスの一覧[固有]),クラスの一覧[固有],0),2),0)","v":0}]
[null,"17:30:00",{"$f":"IFERROR(INDEX(クラスの一覧[],MATCH(SUMPRODUCT((クラスの一覧[曜日]=クラス_スケジュール[[#Headers],[日曜日]])*(ROUNDDOWN($B42,10)>=ROUNDDOWN(クラスの一覧[開始時刻],10))*($B42<=クラスの一覧[終了時刻]),クラスの一覧[固有]),クラスの一覧[固有],0),2),0)","v":0},{"$f":"IFERROR(INDEX(クラスの一覧[],MATCH(SUMPRODUCT((クラスの一覧[曜日]=クラス_スケジュール[[#Headers],[月曜日]])*(ROUNDDOWN($B42,10)>=ROUNDDOWN(クラスの一覧[開始時刻],10))*($B42<=クラスの一覧[終了時刻]),クラスの一覧[固有]),クラスの一覧[固有],0),2),0)","v":0},{"$f":"IFERROR(INDEX(クラスの一覧[],MATCH(SUMPRODUCT((クラスの一覧[曜日]=クラス_スケジュール[[#Headers],[火曜日]])*(ROUNDDOWN($B42,10)>=ROUNDDOWN(クラスの一覧[開始時刻],10))*($B42<=クラスの一覧[終了時刻]),クラスの一覧[固有]),クラスの一覧[固有],0),2),0)","v":0},{"$f":"IFERROR(INDEX(クラスの一覧[],MATCH(SUMPRODUCT((クラスの一覧[曜日]=クラス_スケジュール[[#Headers],[水曜日]])*(ROUNDDOWN($B42,10)>=ROUNDDOWN(クラスの一覧[開始時刻],10))*($B42<=クラスの一覧[終了時刻]),クラスの一覧[固有]),クラスの一覧[固有],0),2),0)","v":0},{"$f":"IFERROR(INDEX(クラスの一覧[],MATCH(SUMPRODUCT((クラスの一覧[曜日]=クラス_スケジュール[[#Headers],[木曜日]])*(ROUNDDOWN($B42,10)>=ROUNDDOWN(クラスの一覧[開始時刻],10))*($B42<=クラスの一覧[終了時刻]),クラスの一覧[固有]),クラスの一覧[固有],0),2),0)","v":0},{"$f":"IFERROR(INDEX(クラスの一覧[],MATCH(SUMPRODUCT((クラスの一覧[曜日]=クラス_スケジュール[[#Headers],[金曜日]])*(ROUNDDOWN($B42,10)>=ROUNDDOWN(クラスの一覧[開始時刻],10))*($B42<=クラスの一覧[終了時刻]),クラスの一覧[固有]),クラスの一覧[固有],0),2),0)","v":0},{"$f":"IFERROR(INDEX(クラスの一覧[],MATCH(SUMPRODUCT((クラスの一覧[曜日]=クラス_スケジュール[[#Headers],[土曜日]])*(ROUNDDOWN($B42,10)>=ROUNDDOWN(クラスの一覧[開始時刻],10))*($B42<=クラスの一覧[終了時刻]),クラスの一覧[固有]),クラスの一覧[固有],0),2),0)","v":0}]
[null,"17:45:00",{"$f":"IFERROR(INDEX(クラスの一覧[],MATCH(SUMPRODUCT((クラスの一覧[曜日]=クラス_スケジュール[[#Headers],[日曜日]])*(ROUNDDOWN($B43,10)>=ROUNDDOWN(クラスの一覧[開始時刻],10))*($B43<=クラスの一覧[終了時刻]),クラスの一覧[固有]),クラスの一覧[固有],0),2),0)","v":0},{"$f":"IFERROR(INDEX(クラスの一覧[],MATCH(SUMPRODUCT((クラスの一覧[曜日]=クラス_スケジュール[[#Headers],[月曜日]])*(ROUNDDOWN($B43,10)>=ROUNDDOWN(クラスの一覧[開始時刻],10))*($B43<=クラスの一覧[終了時刻]),クラスの一覧[固有]),クラスの一覧[固有],0),2),0)","v":0},{"$f":"IFERROR(INDEX(クラスの一覧[],MATCH(SUMPRODUCT((クラスの一覧[曜日]=クラス_スケジュール[[#Headers],[火曜日]])*(ROUNDDOWN($B43,10)>=ROUNDDOWN(クラスの一覧[開始時刻],10))*($B43<=クラスの一覧[終了時刻]),クラスの一覧[固有]),クラスの一覧[固有],0),2),0)","v":0},{"$f":"IFERROR(INDEX(クラスの一覧[],MATCH(SUMPRODUCT((クラスの一覧[曜日]=クラス_スケジュール[[#Headers],[水曜日]])*(ROUNDDOWN($B43,10)>=ROUNDDOWN(クラスの一覧[開始時刻],10))*($B43<=クラスの一覧[終了時刻]),クラスの一覧[固有]),クラスの一覧[固有],0),2),0)","v":0},{"$f":"IFERROR(INDEX(クラスの一覧[],MATCH(SUMPRODUCT((クラスの一覧[曜日]=クラス_スケジュール[[#Headers],[木曜日]])*(ROUNDDOWN($B43,10)>=ROUNDDOWN(クラスの一覧[開始時刻],10))*($B43<=クラスの一覧[終了時刻]),クラスの一覧[固有]),クラスの一覧[固有],0),2),0)","v":0},{"$f":"IFERROR(INDEX(クラスの一覧[],MATCH(SUMPRODUCT((クラスの一覧[曜日]=クラス_スケジュール[[#Headers],[金曜日]])*(ROUNDDOWN($B43,10)>=ROUNDDOWN(クラスの一覧[開始時刻],10))*($B43<=クラスの一覧[終了時刻]),クラスの一覧[固有]),クラスの一覧[固有],0),2),0)","v":0},{"$f":"IFERROR(INDEX(クラスの一覧[],MATCH(SUMPRODUCT((クラスの一覧[曜日]=クラス_スケジュール[[#Headers],[土曜日]])*(ROUNDDOWN($B43,10)>=ROUNDDOWN(クラスの一覧[開始時刻],10))*($B43<=クラスの一覧[終了時刻]),クラスの一覧[固有]),クラスの一覧[固有],0),2),0)","v":0}]
[null,"18:00:00",{"$f":"IFERROR(INDEX(クラスの一覧[],MATCH(SUMPRODUCT((クラスの一覧[曜日]=クラス_スケジュール[[#Headers],[日曜日]])*(ROUNDDOWN($B44,10)>=ROUNDDOWN(クラスの一覧[開始時刻],10))*($B44<=クラスの一覧[終了時刻]),クラスの一覧[固有]),クラスの一覧[固有],0),2),0)","v":0},{"$f":"IFERROR(INDEX(クラスの一覧[],MATCH(SUMPRODUCT((クラスの一覧[曜日]=クラス_スケジュール[[#Headers],[月曜日]])*(ROUNDDOWN($B44,10)>=ROUNDDOWN(クラスの一覧[開始時刻],10))*($B44<=クラスの一覧[終了時刻]),クラスの一覧[固有]),クラスの一覧[固有],0),2),0)","v":0},{"$f":"IFERROR(INDEX(クラスの一覧[],MATCH(SUMPRODUCT((クラスの一覧[曜日]=クラス_スケジュール[[#Headers],[火曜日]])*(ROUNDDOWN($B44,10)>=ROUNDDOWN(クラスの一覧[開始時刻],10))*($B44<=クラスの一覧[終了時刻]),クラスの一覧[固有]),クラスの一覧[固有],0),2),0)","v":0},{"$f":"IFERROR(INDEX(クラスの一覧[],MATCH(SUMPRODUCT((クラスの一覧[曜日]=クラス_スケジュール[[#Headers],[水曜日]])*(ROUNDDOWN($B44,10)>=ROUNDDOWN(クラスの一覧[開始時刻],10))*($B44<=クラスの一覧[終了時刻]),クラスの一覧[固有]),クラスの一覧[固有],0),2),0)","v":0},{"$f":"IFERROR(INDEX(クラスの一覧[],MATCH(SUMPRODUCT((クラスの一覧[曜日]=クラス_スケジュール[[#Headers],[木曜日]])*(ROUNDDOWN($B44,10)>=ROUNDDOWN(クラスの一覧[開始時刻],10))*($B44<=クラスの一覧[終了時刻]),クラスの一覧[固有]),クラスの一覧[固有],0),2),0)","v":0},{"$f":"IFERROR(INDEX(クラスの一覧[],MATCH(SUMPRODUCT((クラスの一覧[曜日]=クラス_スケジュール[[#Headers],[金曜日]])*(ROUNDDOWN($B44,10)>=ROUNDDOWN(クラスの一覧[開始時刻],10))*($B44<=クラスの一覧[終了時刻]),クラスの一覧[固有]),クラスの一覧[固有],0),2),0)","v":0},{"$f":"IFERROR(INDEX(クラスの一覧[],MATCH(SUMPRODUCT((クラスの一覧[曜日]=クラス_スケジュール[[#Headers],[土曜日]])*(ROUNDDOWN($B44,10)>=ROUNDDOWN(クラスの一覧[開始時刻],10))*($B44<=クラスの一覧[終了時刻]),クラスの一覧[固有]),クラスの一覧[固有],0),2),0)","v":0}]
[null,"18:15:00",{"$f":"IFERROR(INDEX(クラスの一覧[],MATCH(SUMPRODUCT((クラスの一覧[曜日]=クラス_スケジュール[[#Headers],[日曜日]])*(ROUNDDOWN($B45,10)>=ROUNDDOWN(クラスの一覧[開始時刻],10))*($B45<=クラスの一覧[終了時刻]),クラスの一覧[固有]),クラスの一覧[固有],0),2),0)","v":0},{"$f":"IFERROR(INDEX(クラスの一覧[],MATCH(SUMPRODUCT((クラスの一覧[曜日]=クラス_スケジュール[[#Headers],[月曜日]])*(ROUNDDOWN($B45,10)>=ROUNDDOWN(クラスの一覧[開始時刻],10))*($B45<=クラスの一覧[終了時刻]),クラスの一覧[固有]),クラスの一覧[固有],0),2),0)","v":0},{"$f":"IFERROR(INDEX(クラスの一覧[],MATCH(SUMPRODUCT((クラスの一覧[曜日]=クラス_スケジュール[[#Headers],[火曜日]])*(ROUNDDOWN($B45,10)>=ROUNDDOWN(クラスの一覧[開始時刻],10))*($B45<=クラスの一覧[終了時刻]),クラスの一覧[固有]),クラスの一覧[固有],0),2),0)","v":0},{"$f":"IFERROR(INDEX(クラスの一覧[],MATCH(SUMPRODUCT((クラスの一覧[曜日]=クラス_スケジュール[[#Headers],[水曜日]])*(ROUNDDOWN($B45,10)>=ROUNDDOWN(クラスの一覧[開始時刻],10))*($B45<=クラスの一覧[終了時刻]),クラスの一覧[固有]),クラスの一覧[固有],0),2),0)","v":0},{"$f":"IFERROR(INDEX(クラスの一覧[],MATCH(SUMPRODUCT((クラスの一覧[曜日]=クラス_スケジュール[[#Headers],[木曜日]])*(ROUNDDOWN($B45,10)>=ROUNDDOWN(クラスの一覧[開始時刻],10))*($B45<=クラスの一覧[終了時刻]),クラスの一覧[固有]),クラスの一覧[固有],0),2),0)","v":0},{"$f":"IFERROR(INDEX(クラスの一覧[],MATCH(SUMPRODUCT((クラスの一覧[曜日]=クラス_スケジュール[[#Headers],[金曜日]])*(ROUNDDOWN($B45,10)>=ROUNDDOWN(クラスの一覧[開始時刻],10))*($B45<=クラスの一覧[終了時刻]),クラスの一覧[固有]),クラスの一覧[固有],0),2),0)","v":0},{"$f":"IFERROR(INDEX(クラスの一覧[],MATCH(SUMPRODUCT((クラスの一覧[曜日]=クラス_スケジュール[[#Headers],[土曜日]])*(ROUNDDOWN($B45,10)>=ROUNDDOWN(クラスの一覧[開始時刻],10))*($B45<=クラスの一覧[終了時刻]),クラスの一覧[固有]),クラスの一覧[固有],0),2),0)","v":0}]
[null,"18:30:00",{"$f":"IFERROR(INDEX(クラスの一覧[],MATCH(SUMPRODUCT((クラスの一覧[曜日]=クラス_スケジュール[[#Headers],[日曜日]])*(ROUNDDOWN($B46,10)>=ROUNDDOWN(クラスの一覧[開始時刻],10))*($B46<=クラスの一覧[終了時刻]),クラスの一覧[固有]),クラスの一覧[固有],0),2),0)","v":0},{"$f":"IFERROR(INDEX(クラスの一覧[],MATCH(SUMPRODUCT((クラスの一覧[曜日]=クラス_スケジュール[[#Headers],[月曜日]])*(ROUNDDOWN($B46,10)>=ROUNDDOWN(クラスの一覧[開始時刻],10))*($B46<=クラスの一覧[終了時刻]),クラスの一覧[固有]),クラスの一覧[固有],0),2),0)","v":0},{"$f":"IFERROR(INDEX(クラスの一覧[],MATCH(SUMPRODUCT((クラスの一覧[曜日]=クラス_スケジュール[[#Headers],[火曜日]])*(ROUNDDOWN($B46,10)>=ROUNDDOWN(クラスの一覧[開始時刻],10))*($B46<=クラスの一覧[終了時刻]),クラスの一覧[固有]),クラスの一覧[固有],0),2),0)","v":0},{"$f":"IFERROR(INDEX(クラスの一覧[],MATCH(SUMPRODUCT((クラスの一覧[曜日]=クラス_スケジュール[[#Headers],[水曜日]])*(ROUNDDOWN($B46,10)>=ROUNDDOWN(クラスの一覧[開始時刻],10))*($B46<=クラスの一覧[終了時刻]),クラスの一覧[固有]),クラスの一覧[固有],0),2),0)","v":0},{"$f":"IFERROR(INDEX(クラスの一覧[],MATCH(SUMPRODUCT((クラスの一覧[曜日]=クラス_スケジュール[[#Headers],[木曜日]])*(ROUNDDOWN($B46,10)>=ROUNDDOWN(クラスの一覧[開始時刻],10))*($B46<=クラスの一覧[終了時刻]),クラスの一覧[固有]),クラスの一覧[固有],0),2),0)","v":0},{"$f":"IFERROR(INDEX(クラスの一覧[],MATCH(SUMPRODUCT((クラスの一覧[曜日]=クラス_スケジュール[[#Headers],[金曜日]])*(ROUNDDOWN($B46,10)>=ROUNDDOWN(クラスの一覧[開始時刻],10))*($B46<=クラスの一覧[終了時刻]),クラスの一覧[固有]),クラスの一覧[固有],0),2),0)","v":0},{"$f":"IFERROR(INDEX(クラスの一覧[],MATCH(SUMPRODUCT((クラスの一覧[曜日]=クラス_スケジュール[[#Headers],[土曜日]])*(ROUNDDOWN($B46,10)>=ROUNDDOWN(クラスの一覧[開始時刻],10))*($B46<=クラスの一覧[終了時刻]),クラスの一覧[固有]),クラスの一覧[固有],0),2),0)","v":0}]
[null,"18:45:00",{"$f":"IFERROR(INDEX(クラスの一覧[],MATCH(SUMPRODUCT((クラスの一覧[曜日]=クラス_スケジュール[[#Headers],[日曜日]])*(ROUNDDOWN($B47,10)>=ROUNDDOWN(クラスの一覧[開始時刻],10))*($B47<=クラスの一覧[終了時刻]),クラスの一覧[固有]),クラスの一覧[固有],0),2),0)","v":0},{"$f":"IFERROR(INDEX(クラスの一覧[],MATCH(SUMPRODUCT((クラスの一覧[曜日]=クラス_スケジュール[[#Headers],[月曜日]])*(ROUNDDOWN($B47,10)>=ROUNDDOWN(クラスの一覧[開始時刻],10))*($B47<=クラスの一覧[終了時刻]),クラスの一覧[固有]),クラスの一覧[固有],0),2),0)","v":0},{"$f":"IFERROR(INDEX(クラスの一覧[],MATCH(SUMPRODUCT((クラスの一覧[曜日]=クラス_スケジュール[[#Headers],[火曜日]])*(ROUNDDOWN($B47,10)>=ROUNDDOWN(クラスの一覧[開始時刻],10))*($B47<=クラスの一覧[終了時刻]),クラスの一覧[固有]),クラスの一覧[固有],0),2),0)","v":0},{"$f":"IFERROR(INDEX(クラスの一覧[],MATCH(SUMPRODUCT((クラスの一覧[曜日]=クラス_スケジュール[[#Headers],[水曜日]])*(ROUNDDOWN($B47,10)>=ROUNDDOWN(クラスの一覧[開始時刻],10))*($B47<=クラスの一覧[終了時刻]),クラスの一覧[固有]),クラスの一覧[固有],0),2),0)","v":0},{"$f":"IFERROR(INDEX(クラスの一覧[],MATCH(SUMPRODUCT((クラスの一覧[曜日]=クラス_スケジュール[[#Headers],[木曜日]])*(ROUNDDOWN($B47,10)>=ROUNDDOWN(クラスの一覧[開始時刻],10))*($B47<=クラスの一覧[終了時刻]),クラスの一覧[固有]),クラスの一覧[固有],0),2),0)","v":0},{"$f":"IFERROR(INDEX(クラスの一覧[],MATCH(SUMPRODUCT((クラスの一覧[曜日]=クラス_スケジュール[[#Headers],[金曜日]])*(ROUNDDOWN($B47,10)>=ROUNDDOWN(クラスの一覧[開始時刻],10))*($B47<=クラスの一覧[終了時刻]),クラスの一覧[固有]),クラスの一覧[固有],0),2),0)","v":0},{"$f":"IFERROR(INDEX(クラスの一覧[],MATCH(SUMPRODUCT((クラスの一覧[曜日]=クラス_スケジュール[[#Headers],[土曜日]])*(ROUNDDOWN($B47,10)>=ROUNDDOWN(クラスの一覧[開始時刻],10))*($B47<=クラスの一覧[終了時刻]),クラスの一覧[固有]),クラスの一覧[固有],0),2),0)","v":0}]
[null,"19:00:00",{"$f":"IFERROR(INDEX(クラスの一覧[],MATCH(SUMPRODUCT((クラスの一覧[曜日]=クラス_スケジュール[[#Headers],[日曜日]])*(ROUNDDOWN($B48,10)>=ROUNDDOWN(クラスの一覧[開始時刻],10))*($B48<=クラスの一覧[終了時刻]),クラスの一覧[固有]),クラスの一覧[固有],0),2),0)","v":0},{"$f":"IFERROR(INDEX(クラスの一覧[],MATCH(SUMPRODUCT((クラスの一覧[曜日]=クラス_スケジュール[[#Headers],[月曜日]])*(ROUNDDOWN($B48,10)>=ROUNDDOWN(クラスの一覧[開始時刻],10))*($B48<=クラスの一覧[終了時刻]),クラスの一覧[固有]),クラスの一覧[固有],0),2),0)","v":0},{"$f":"IFERROR(INDEX(クラスの一覧[],MATCH(SUMPRODUCT((クラスの一覧[曜日]=クラス_スケジュール[[#Headers],[火曜日]])*(ROUNDDOWN($B48,10)>=ROUNDDOWN(クラスの一覧[開始時刻],10))*($B48<=クラスの一覧[終了時刻]),クラスの一覧[固有]),クラスの一覧[固有],0),2),0)","v":0},{"$f":"IFERROR(INDEX(クラスの一覧[],MATCH(SUMPRODUCT((クラスの一覧[曜日]=クラス_スケジュール[[#Headers],[水曜日]])*(ROUNDDOWN($B48,10)>=ROUNDDOWN(クラスの一覧[開始時刻],10))*($B48<=クラスの一覧[終了時刻]),クラスの一覧[固有]),クラスの一覧[固有],0),2),0)","v":0},{"$f":"IFERROR(INDEX(クラスの一覧[],MATCH(SUMPRODUCT((クラスの一覧[曜日]=クラス_スケジュール[[#Headers],[木曜日]])*(ROUNDDOWN($B48,10)>=ROUNDDOWN(クラスの一覧[開始時刻],10))*($B48<=クラスの一覧[終了時刻]),クラスの一覧[固有]),クラスの一覧[固有],0),2),0)","v":0},{"$f":"IFERROR(INDEX(クラスの一覧[],MATCH(SUMPRODUCT((クラスの一覧[曜日]=クラス_スケジュール[[#Headers],[金曜日]])*(ROUNDDOWN($B48,10)>=ROUNDDOWN(クラスの一覧[開始時刻],10))*($B48<=クラスの一覧[終了時刻]),クラスの一覧[固有]),クラスの一覧[固有],0),2),0)","v":0},{"$f":"IFERROR(INDEX(クラスの一覧[],MATCH(SUMPRODUCT((クラスの一覧[曜日]=クラス_スケジュール[[#Headers],[土曜日]])*(ROUNDDOWN($B48,10)>=ROUNDDOWN(クラスの一覧[開始時刻],10))*($B48<=クラスの一覧[終了時刻]),クラスの一覧[固有]),クラスの一覧[固有],0),2),0)","v":0}]
[null,"19:15:00",{"$f":"IFERROR(INDEX(クラスの一覧[],MATCH(SUMPRODUCT((クラスの一覧[曜日]=クラス_スケジュール[[#Headers],[日曜日]])*(ROUNDDOWN($B49,10)>=ROUNDDOWN(クラスの一覧[開始時刻],10))*($B49<=クラスの一覧[終了時刻]),クラスの一覧[固有]),クラスの一覧[固有],0),2),0)","v":0},{"$f":"IFERROR(INDEX(クラスの一覧[],MATCH(SUMPRODUCT((クラスの一覧[曜日]=クラス_スケジュール[[#Headers],[月曜日]])*(ROUNDDOWN($B49,10)>=ROUNDDOWN(クラスの一覧[開始時刻],10))*($B49<=クラスの一覧[終了時刻]),クラスの一覧[固有]),クラスの一覧[固有],0),2),0)","v":0},{"$f":"IFERROR(INDEX(クラスの一覧[],MATCH(SUMPRODUCT((クラスの一覧[曜日]=クラス_スケジュール[[#Headers],[火曜日]])*(ROUNDDOWN($B49,10)>=ROUNDDOWN(クラスの一覧[開始時刻],10))*($B49<=クラスの一覧[終了時刻]),クラスの一覧[固有]),クラスの一覧[固有],0),2),0)","v":0},{"$f":"IFERROR(INDEX(クラスの一覧[],MATCH(SUMPRODUCT((クラスの一覧[曜日]=クラス_スケジュール[[#Headers],[水曜日]])*(ROUNDDOWN($B49,10)>=ROUNDDOWN(クラスの一覧[開始時刻],10))*($B49<=クラスの一覧[終了時刻]),クラスの一覧[固有]),クラスの一覧[固有],0),2),0)","v":0},{"$f":"IFERROR(INDEX(クラスの一覧[],MATCH(SUMPRODUCT((クラスの一覧[曜日]=クラス_スケジュール[[#Headers],[木曜日]])*(ROUNDDOWN($B49,10)>=ROUNDDOWN(クラスの一覧[開始時刻],10))*($B49<=クラスの一覧[終了時刻]),クラスの一覧[固有]),クラスの一覧[固有],0),2),0)","v":0},{"$f":"IFERROR(INDEX(クラスの一覧[],MATCH(SUMPRODUCT((クラスの一覧[曜日]=クラス_スケジュール[[#Headers],[金曜日]])*(ROUNDDOWN($B49,10)>=ROUNDDOWN(クラスの一覧[開始時刻],10))*($B49<=クラスの一覧[終了時刻]),クラスの一覧[固有]),クラスの一覧[固有],0),2),0)","v":0},{"$f":"IFERROR(INDEX(クラスの一覧[],MATCH(SUMPRODUCT((クラスの一覧[曜日]=クラス_スケジュール[[#Headers],[土曜日]])*(ROUNDDOWN($B49,10)>=ROUNDDOWN(クラスの一覧[開始時刻],10))*($B49<=クラスの一覧[終了時刻]),クラスの一覧[固有]),クラスの一覧[固有],0),2),0)","v":0}]
[null,"19:30:00",{"$f":"IFERROR(INDEX(クラスの一覧[],MATCH(SUMPRODUCT((クラスの一覧[曜日]=クラス_スケジュール[[#Headers],[日曜日]])*(ROUNDDOWN($B50,10)>=ROUNDDOWN(クラスの一覧[開始時刻],10))*($B50<=クラスの一覧[終了時刻]),クラスの一覧[固有]),クラスの一覧[固有],0),2),0)","v":0},{"$f":"IFERROR(INDEX(クラスの一覧[],MATCH(SUMPRODUCT((クラスの一覧[曜日]=クラス_スケジュール[[#Headers],[月曜日]])*(ROUNDDOWN($B50,10)>=ROUNDDOWN(クラスの一覧[開始時刻],10))*($B50<=クラスの一覧[終了時刻]),クラスの一覧[固有]),クラスの一覧[固有],0),2),0)","v":0},{"$f":"IFERROR(INDEX(クラスの一覧[],MATCH(SUMPRODUCT((クラスの一覧[曜日]=クラス_スケジュール[[#Headers],[火曜日]])*(ROUNDDOWN($B50,10)>=ROUNDDOWN(クラスの一覧[開始時刻],10))*($B50<=クラスの一覧[終了時刻]),クラスの一覧[固有]),クラスの一覧[固有],0),2),0)","v":0},{"$f":"IFERROR(INDEX(クラスの一覧[],MATCH(SUMPRODUCT((クラスの一覧[曜日]=クラス_スケジュール[[#Headers],[水曜日]])*(ROUNDDOWN($B50,10)>=ROUNDDOWN(クラスの一覧[開始時刻],10))*($B50<=クラスの一覧[終了時刻]),クラスの一覧[固有]),クラスの一覧[固有],0),2),0)","v":0},{"$f":"IFERROR(INDEX(クラスの一覧[],MATCH(SUMPRODUCT((クラスの一覧[曜日]=クラス_スケジュール[[#Headers],[木曜日]])*(ROUNDDOWN($B50,10)>=ROUNDDOWN(クラスの一覧[開始時刻],10))*($B50<=クラスの一覧[終了時刻]),クラスの一覧[固有]),クラスの一覧[固有],0),2),0)","v":0},{"$f":"IFERROR(INDEX(クラスの一覧[],MATCH(SUMPRODUCT((クラスの一覧[曜日]=クラス_スケジュール[[#Headers],[金曜日]])*(ROUNDDOWN($B50,10)>=ROUNDDOWN(クラスの一覧[開始時刻],10))*($B50<=クラスの一覧[終了時刻]),クラスの一覧[固有]),クラスの一覧[固有],0),2),0)","v":0},{"$f":"IFERROR(INDEX(クラスの一覧[],MATCH(SUMPRODUCT((クラスの一覧[曜日]=クラス_スケジュール[[#Headers],[土曜日]])*(ROUNDDOWN($B50,10)>=ROUNDDOWN(クラスの一覧[開始時刻],10))*($B50<=クラスの一覧[終了時刻]),クラスの一覧[固有]),クラスの一覧[固有],0),2),0)","v":0}]
[null,"19:45:00",{"$f":"IFERROR(INDEX(クラスの一覧[],MATCH(SUMPRODUCT((クラスの一覧[曜日]=クラス_スケジュール[[#Headers],[日曜日]])*(ROUNDDOWN($B51,10)>=ROUNDDOWN(クラスの一覧[開始時刻],10))*($B51<=クラスの一覧[終了時刻]),クラスの一覧[固有]),クラスの一覧[固有],0),2),0)","v":0},{"$f":"IFERROR(INDEX(クラスの一覧[],MATCH(SUMPRODUCT((クラスの一覧[曜日]=クラス_スケジュール[[#Headers],[月曜日]])*(ROUNDDOWN($B51,10)>=ROUNDDOWN(クラスの一覧[開始時刻],10))*($B51<=クラスの一覧[終了時刻]),クラスの一覧[固有]),クラスの一覧[固有],0),2),0)","v":0},{"$f":"IFERROR(INDEX(クラスの一覧[],MATCH(SUMPRODUCT((クラスの一覧[曜日]=クラス_スケジュール[[#Headers],[火曜日]])*(ROUNDDOWN($B51,10)>=ROUNDDOWN(クラスの一覧[開始時刻],10))*($B51<=クラスの一覧[終了時刻]),クラスの一覧[固有]),クラスの一覧[固有],0),2),0)","v":0},{"$f":"IFERROR(INDEX(クラスの一覧[],MATCH(SUMPRODUCT((クラスの一覧[曜日]=クラス_スケジュール[[#Headers],[水曜日]])*(ROUNDDOWN($B51,10)>=ROUNDDOWN(クラスの一覧[開始時刻],10))*($B51<=クラスの一覧[終了時刻]),クラスの一覧[固有]),クラスの一覧[固有],0),2),0)","v":0},{"$f":"IFERROR(INDEX(クラスの一覧[],MATCH(SUMPRODUCT((クラスの一覧[曜日]=クラス_スケジュール[[#Headers],[木曜日]])*(ROUNDDOWN($B51,10)>=ROUNDDOWN(クラスの一覧[開始時刻],10))*($B51<=クラスの一覧[終了時刻]),クラスの一覧[固有]),クラスの一覧[固有],0),2),0)","v":0},{"$f":"IFERROR(INDEX(クラスの一覧[],MATCH(SUMPRODUCT((クラスの一覧[曜日]=クラス_スケジュール[[#Headers],[金曜日]])*(ROUNDDOWN($B51,10)>=ROUNDDOWN(クラスの一覧[開始時刻],10))*($B51<=クラスの一覧[終了時刻]),クラスの一覧[固有]),クラスの一覧[固有],0),2),0)","v":0},{"$f":"IFERROR(INDEX(クラスの一覧[],MATCH(SUMPRODUCT((クラスの一覧[曜日]=クラス_スケジュール[[#Headers],[土曜日]])*(ROUNDDOWN($B51,10)>=ROUNDDOWN(クラスの一覧[開始時刻],10))*($B51<=クラスの一覧[終了時刻]),クラスの一覧[固有]),クラスの一覧[固有],0),2),0)","v":0}]
[null,"20:00:00",{"$f":"IFERROR(INDEX(クラスの一覧[],MATCH(SUMPRODUCT((クラスの一覧[曜日]=クラス_スケジュール[[#Headers],[日曜日]])*(ROUNDDOWN($B52,10)>=ROUNDDOWN(クラスの一覧[開始時刻],10))*($B52<=クラスの一覧[終了時刻]),クラスの一覧[固有]),クラスの一覧[固有],0),2),0)","v":0},{"$f":"IFERROR(INDEX(クラスの一覧[],MATCH(SUMPRODUCT((クラスの一覧[曜日]=クラス_スケジュール[[#Headers],[月曜日]])*(ROUNDDOWN($B52,10)>=ROUNDDOWN(クラスの一覧[開始時刻],10))*($B52<=クラスの一覧[終了時刻]),クラスの一覧[固有]),クラスの一覧[固有],0),2),0)","v":0},{"$f":"IFERROR(INDEX(クラスの一覧[],MATCH(SUMPRODUCT((クラスの一覧[曜日]=クラス_スケジュール[[#Headers],[火曜日]])*(ROUNDDOWN($B52,10)>=ROUNDDOWN(クラスの一覧[開始時刻],10))*($B52<=クラスの一覧[終了時刻]),クラスの一覧[固有]),クラスの一覧[固有],0),2),0)","v":0},{"$f":"IFERROR(INDEX(クラスの一覧[],MATCH(SUMPRODUCT((クラスの一覧[曜日]=クラス_スケジュール[[#Headers],[水曜日]])*(ROUNDDOWN($B52,10)>=ROUNDDOWN(クラスの一覧[開始時刻],10))*($B52<=クラスの一覧[終了時刻]),クラスの一覧[固有]),クラスの一覧[固有],0),2),0)","v":0},{"$f":"IFERROR(INDEX(クラスの一覧[],MATCH(SUMPRODUCT((クラスの一覧[曜日]=クラス_スケジュール[[#Headers],[木曜日]])*(ROUNDDOWN($B52,10)>=ROUNDDOWN(クラスの一覧[開始時刻],10))*($B52<=クラスの一覧[終了時刻]),クラスの一覧[固有]),クラスの一覧[固有],0),2),0)","v":0},{"$f":"IFERROR(INDEX(クラスの一覧[],MATCH(SUMPRODUCT((クラスの一覧[曜日]=クラス_スケジュール[[#Headers],[金曜日]])*(ROUNDDOWN($B52,10)>=ROUNDDOWN(クラスの一覧[開始時刻],10))*($B52<=クラスの一覧[終了時刻]),クラスの一覧[固有]),クラスの一覧[固有],0),2),0)","v":0},{"$f":"IFERROR(INDEX(クラスの一覧[],MATCH(SUMPRODUCT((クラスの一覧[曜日]=クラス_スケジュール[[#Headers],[土曜日]])*(ROUNDDOWN($B52,10)>=ROUNDDOWN(クラスの一覧[開始時刻],10))*($B52<=クラスの一覧[終了時刻]),クラスの一覧[固有]),クラスの一覧[固有],0),2),0)","v":0}]
[null,"20:15:00",{"$f":"IFERROR(INDEX(クラスの一覧[],MATCH(SUMPRODUCT((クラスの一覧[曜日]=クラス_スケジュール[[#Headers],[日曜日]])*(ROUNDDOWN($B53,10)>=ROUNDDOWN(クラスの一覧[開始時刻],10))*($B53<=クラスの一覧[終了時刻]),クラスの一覧[固有]),クラスの一覧[固有],0),2),0)","v":0},{"$f":"IFERROR(INDEX(クラスの一覧[],MATCH(SUMPRODUCT((クラスの一覧[曜日]=クラス_スケジュール[[#Headers],[月曜日]])*(ROUNDDOWN($B53,10)>=ROUNDDOWN(クラスの一覧[開始時刻],10))*($B53<=クラスの一覧[終了時刻]),クラスの一覧[固有]),クラスの一覧[固有],0),2),0)","v":0},{"$f":"IFERROR(INDEX(クラスの一覧[],MATCH(SUMPRODUCT((クラスの一覧[曜日]=クラス_スケジュール[[#Headers],[火曜日]])*(ROUNDDOWN($B53,10)>=ROUNDDOWN(クラスの一覧[開始時刻],10))*($B53<=クラスの一覧[終了時刻]),クラスの一覧[固有]),クラスの一覧[固有],0),2),0)","v":0},{"$f":"IFERROR(INDEX(クラスの一覧[],MATCH(SUMPRODUCT((クラスの一覧[曜日]=クラス_スケジュール[[#Headers],[水曜日]])*(ROUNDDOWN($B53,10)>=ROUNDDOWN(クラスの一覧[開始時刻],10))*($B53<=クラスの一覧[終了時刻]),クラスの一覧[固有]),クラスの一覧[固有],0),2),0)","v":0},{"$f":"IFERROR(INDEX(クラスの一覧[],MATCH(SUMPRODUCT((クラスの一覧[曜日]=クラス_スケジュール[[#Headers],[木曜日]])*(ROUNDDOWN($B53,10)>=ROUNDDOWN(クラスの一覧[開始時刻],10))*($B53<=クラスの一覧[終了時刻]),クラスの一覧[固有]),クラスの一覧[固有],0),2),0)","v":0},{"$f":"IFERROR(INDEX(クラスの一覧[],MATCH(SUMPRODUCT((クラスの一覧[曜日]=クラス_スケジュール[[#Headers],[金曜日]])*(ROUNDDOWN($B53,10)>=ROUNDDOWN(クラスの一覧[開始時刻],10))*($B53<=クラスの一覧[終了時刻]),クラスの一覧[固有]),クラスの一覧[固有],0),2),0)","v":0},{"$f":"IFERROR(INDEX(クラスの一覧[],MATCH(SUMPRODUCT((クラスの一覧[曜日]=クラス_スケジュール[[#Headers],[土曜日]])*(ROUNDDOWN($B53,10)>=ROUNDDOWN(クラスの一覧[開始時刻],10))*($B53<=クラスの一覧[終了時刻]),クラスの一覧[固有]),クラスの一覧[固有],0),2),0)","v":0}]
[null,"20:30:00",{"$f":"IFERROR(INDEX(クラスの一覧[],MATCH(SUMPRODUCT((クラスの一覧[曜日]=クラス_スケジュール[[#Headers],[日曜日]])*(ROUNDDOWN($B54,10)>=ROUNDDOWN(クラスの一覧[開始時刻],10))*($B54<=クラスの一覧[終了時刻]),クラスの一覧[固有]),クラスの一覧[固有],0),2),0)","v":0},{"$f":"IFERROR(INDEX(クラスの一覧[],MATCH(SUMPRODUCT((クラスの一覧[曜日]=クラス_スケジュール[[#Headers],[月曜日]])*(ROUNDDOWN($B54,10)>=ROUNDDOWN(クラスの一覧[開始時刻],10))*($B54<=クラスの一覧[終了時刻]),クラスの一覧[固有]),クラスの一覧[固有],0),2),0)","v":0},{"$f":"IFERROR(INDEX(クラスの一覧[],MATCH(SUMPRODUCT((クラスの一覧[曜日]=クラス_スケジュール[[#Headers],[火曜日]])*(ROUNDDOWN($B54,10)>=ROUNDDOWN(クラスの一覧[開始時刻],10))*($B54<=クラスの一覧[終了時刻]),クラスの一覧[固有]),クラスの一覧[固有],0),2),0)","v":0},{"$f":"IFERROR(INDEX(クラスの一覧[],MATCH(SUMPRODUCT((クラスの一覧[曜日]=クラス_スケジュール[[#Headers],[水曜日]])*(ROUNDDOWN($B54,10)>=ROUNDDOWN(クラスの一覧[開始時刻],10))*($B54<=クラスの一覧[終了時刻]),クラスの一覧[固有]),クラスの一覧[固有],0),2),0)","v":0},{"$f":"IFERROR(INDEX(クラスの一覧[],MATCH(SUMPRODUCT((クラスの一覧[曜日]=クラス_スケジュール[[#Headers],[木曜日]])*(ROUNDDOWN($B54,10)>=ROUNDDOWN(クラスの一覧[開始時刻],10))*($B54<=クラスの一覧[終了時刻]),クラスの一覧[固有]),クラスの一覧[固有],0),2),0)","v":0},{"$f":"IFERROR(INDEX(クラスの一覧[],MATCH(SUMPRODUCT((クラスの一覧[曜日]=クラス_スケジュール[[#Headers],[金曜日]])*(ROUNDDOWN($B54,10)>=ROUNDDOWN(クラスの一覧[開始時刻],10))*($B54<=クラスの一覧[終了時刻]),クラスの一覧[固有]),クラスの一覧[固有],0),2),0)","v":0},{"$f":"IFERROR(INDEX(クラスの一覧[],MATCH(SUMPRODUCT((クラスの一覧[曜日]=クラス_スケジュール[[#Headers],[土曜日]])*(ROUNDDOWN($B54,10)>=ROUNDDOWN(クラスの一覧[開始時刻],10))*($B54<=クラスの一覧[終了時刻]),クラスの一覧[固有]),クラスの一覧[固有],0),2),0)","v":0}]
[null,"20:45:00",{"$f":"IFERROR(INDEX(クラスの一覧[],MATCH(SUMPRODUCT((クラスの一覧[曜日]=クラス_スケジュール[[#Headers],[日曜日]])*(ROUNDDOWN($B55,10)>=ROUNDDOWN(クラスの一覧[開始時刻],10))*($B55<=クラスの一覧[終了時刻]),クラスの一覧[固有]),クラスの一覧[固有],0),2),0)","v":0},{"$f":"IFERROR(INDEX(クラスの一覧[],MATCH(SUMPRODUCT((クラスの一覧[曜日]=クラス_スケジュール[[#Headers],[月曜日]])*(ROUNDDOWN($B55,10)>=ROUNDDOWN(クラスの一覧[開始時刻],10))*($B55<=クラスの一覧[終了時刻]),クラスの一覧[固有]),クラスの一覧[固有],0),2),0)","v":0},{"$f":"IFERROR(INDEX(クラスの一覧[],MATCH(SUMPRODUCT((クラスの一覧[曜日]=クラス_スケジュール[[#Headers],[火曜日]])*(ROUNDDOWN($B55,10)>=ROUNDDOWN(クラスの一覧[開始時刻],10))*($B55<=クラスの一覧[終了時刻]),クラスの一覧[固有]),クラスの一覧[固有],0),2),0)","v":0},{"$f":"IFERROR(INDEX(クラスの一覧[],MATCH(SUMPRODUCT((クラスの一覧[曜日]=クラス_スケジュール[[#Headers],[水曜日]])*(ROUNDDOWN($B55,10)>=ROUNDDOWN(クラスの一覧[開始時刻],10))*($B55<=クラスの一覧[終了時刻]),クラスの一覧[固有]),クラスの一覧[固有],0),2),0)","v":0},{"$f":"IFERROR(INDEX(クラスの一覧[],MATCH(SUMPRODUCT((クラスの一覧[曜日]=クラス_スケジュール[[#Headers],[木曜日]])*(ROUNDDOWN($B55,10)>=ROUNDDOWN(クラスの一覧[開始時刻],10))*($B55<=クラスの一覧[終了時刻]),クラスの一覧[固有]),クラスの一覧[固有],0),2),0)","v":0},{"$f":"IFERROR(INDEX(クラスの一覧[],MATCH(SUMPRODUCT((クラスの一覧[曜日]=クラス_スケジュール[[#Headers],[金曜日]])*(ROUNDDOWN($B55,10)>=ROUNDDOWN(クラスの一覧[開始時刻],10))*($B55<=クラスの一覧[終了時刻]),クラスの一覧[固有]),クラスの一覧[固有],0),2),0)","v":0},{"$f":"IFERROR(INDEX(クラスの一覧[],MATCH(SUMPRODUCT((クラスの一覧[曜日]=クラス_スケジュール[[#Headers],[土曜日]])*(ROUNDDOWN($B55,10)>=ROUNDDOWN(クラスの一覧[開始時刻],10))*($B55<=クラスの一覧[終了時刻]),クラスの一覧[固有]),クラスの一覧[固有],0),2),0)","v":0}]
[null,"21:00:00",{"$f":"IFERROR(INDEX(クラスの一覧[],MATCH(SUMPRODUCT((クラスの一覧[曜日]=クラス_スケジュール[[#Headers],[日曜日]])*(ROUNDDOWN($B56,10)>=ROUNDDOWN(クラスの一覧[開始時刻],10))*($B56<=クラスの一覧[終了時刻]),クラスの一覧[固有]),クラスの一覧[固有],0),2),0)","v":0},{"$f":"IFERROR(INDEX(クラスの一覧[],MATCH(SUMPRODUCT((クラスの一覧[曜日]=クラス_スケジュール[[#Headers],[月曜日]])*(ROUNDDOWN($B56,10)>=ROUNDDOWN(クラスの一覧[開始時刻],10))*($B56<=クラスの一覧[終了時刻]),クラスの一覧[固有]),クラスの一覧[固有],0),2),0)","v":0},{"$f":"IFERROR(INDEX(クラスの一覧[],MATCH(SUMPRODUCT((クラスの一覧[曜日]=クラス_スケジュール[[#Headers],[火曜日]])*(ROUNDDOWN($B56,10)>=ROUNDDOWN(クラスの一覧[開始時刻],10))*($B56<=クラスの一覧[終了時刻]),クラスの一覧[固有]),クラスの一覧[固有],0),2),0)","v":0},{"$f":"IFERROR(INDEX(クラスの一覧[],MATCH(SUMPRODUCT((クラスの一覧[曜日]=クラス_スケジュール[[#Headers],[水曜日]])*(ROUNDDOWN($B56,10)>=ROUNDDOWN(クラスの一覧[開始時刻],10))*($B56<=クラスの一覧[終了時刻]),クラスの一覧[固有]),クラスの一覧[固有],0),2),0)","v":0},{"$f":"IFERROR(INDEX(クラスの一覧[],MATCH(SUMPRODUCT((クラスの一覧[曜日]=クラス_スケジュール[[#Headers],[木曜日]])*(ROUNDDOWN($B56,10)>=ROUNDDOWN(クラスの一覧[開始時刻],10))*($B56<=クラスの一覧[終了時刻]),クラスの一覧[固有]),クラスの一覧[固有],0),2),0)","v":0},{"$f":"IFERROR(INDEX(クラスの一覧[],MATCH(SUMPRODUCT((クラスの一覧[曜日]=クラス_スケジュール[[#Headers],[金曜日]])*(ROUNDDOWN($B56,10)>=ROUNDDOWN(クラスの一覧[開始時刻],10))*($B56<=クラスの一覧[終了時刻]),クラスの一覧[固有]),クラスの一覧[固有],0),2),0)","v":0},{"$f":"IFERROR(INDEX(クラスの一覧[],MATCH(SUMPRODUCT((クラスの一覧[曜日]=クラス_スケジュール[[#Headers],[土曜日]])*(ROUNDDOWN($B56,10)>=ROUNDDOWN(クラスの一覧[開始時刻],10))*($B56<=クラスの一覧[終了時刻]),クラスの一覧[固有]),クラスの一覧[固有],0),2),0)","v":0}]

{"sheet":"クラスの一覧","index":1,"n_rows":10,"n_cols":8,"rows_kept":10,"merged":[[0,1,0,5],[0,6,0,7]]}
[null,"クラスの一覧",{"$nulls":4},"クラス スケジュール"]
[null,"クラス","ID","曜日","場所","開始時刻","終了時刻","固有"]
[null,"テクニカル ライティング","WR-121","月曜日","建物 A","13:00:00","14:00:00",{"$f":"ROW()-_xlfn.SINGLE(ROW(クラスの一覧[[#Headers],[固有]]))","v":1}]
[null,"テクニカル ライティング","WR-121","水曜日","建物 A","13:00:00","14:00:00",{"$f":"ROW()-_xlfn.SINGLE(ROW(クラスの一覧[[#Headers],[固有]]))","v":2}]
[null,"パブリック スピーキング","SP-111","月曜日","建物 B","16:00:00","17:00:00",{"$f":"ROW()-_xlfn.SINGLE(ROW(クラスの一覧[[#Headers],[固有]]))","v":3}]
[null,"健康とフィットネス","HPE-295","火曜日","建物 B","11:00:00","12:00:00",{"$f":"ROW()-_xlfn.SINGLE(ROW(クラスの一覧[[#Headers],[固有]]))","v":4}]
[null,"健康とフィットネス","HPE-295","木曜日","建物 B","11:00:00","12:00:00",{"$f":"ROW()-_xlfn.SINGLE(ROW(クラスの一覧[[#Headers],[固有]]))","v":5}]
[null,"代数","MTH-113","月曜日","建物 C","08:10:00","09:15:00",{"$f":"ROW()-_xlfn.SINGLE(ROW(クラスの一覧[[#Headers],[固有]]))","v":6}]
[null,"代数","MTH-113","水曜日","建物 C","08:10:00","09:15:00",{"$f":"ROW()-_xlfn.SINGLE(ROW(クラスの一覧[[#Headers],[固有]]))","v":7}]
[null,"代数","MTH-113","金曜日","建物 C","08:10:00","09:15:00",{"$f":"ROW()-_xlfn.SINGLE(ROW(クラスの一覧[[#Headers],[固有]]))","v":8}]